Publisher Label,Publisher URI,"Supplier","Net Amount £","Organisational Unit","Merchant Category Code","Purpose","Payment Date"
"Wolverhampton City Council","http://opendatacommunities.org/id/metropolitan-district-council/wolverhampton","GREGGS PLC","2.20","Mayoral Expenses","5812","Educ Trips, Holidays, Outings, Activity","31/08/2018"
"Wolverhampton City Council","http://opendatacommunities.org/id/metropolitan-district-council/wolverhampton","GREGGS PLC","5.60","Mayoral Expenses","5812","Hospitality","31/08/2018"
"Wolverhampton City Council","http://opendatacommunities.org/id/metropolitan-district-council/wolverhampton","AMZN Mktp UK","21.65","EIP Locality 3","5942","Equipment - Purchase","31/08/2018"
"Wolverhampton City Council","http://opendatacommunities.org/id/metropolitan-district-council/wolverhampton","LOYD 37 CHURCH STREET","70.00","EIP Locality 8","6011","Grant Payments","31/08/2018"
"Wolverhampton City Council","http://opendatacommunities.org/id/metropolitan-district-council/wolverhampton","REGISTRARS OFFICE","10.00","CIN/CP Social Work Unit - Area 2","8299","Section 17","31/08/2018"
"Wolverhampton City Council","http://opendatacommunities.org/id/metropolitan-district-council/wolverhampton","AMZ comfy-living","-65.49","LAC Transitions Team","5999","Client Allowances","31/08/2018"
"Wolverhampton City Council","http://opendatacommunities.org/id/metropolitan-district-council/wolverhampton","WOLVERHAMPTON SST","5.70","Economic Development","4112","Public Transport","31/08/2018"
"Wolverhampton City Council","http://opendatacommunities.org/id/metropolitan-district-council/wolverhampton","EASYJET","194.93","GEN Y City Transnational","3245","Public Transport","31/08/2018"
"Wolverhampton City Council","http://opendatacommunities.org/id/metropolitan-district-council/wolverhampton","WWW.HXPAYMENTS.COM","63.99","GEN Y City Transnational","7523","Car Allowances","31/08/2018"
"Wolverhampton City Council","http://opendatacommunities.org/id/metropolitan-district-council/wolverhampton","WWW.WMCA.CO.UK","113.00","IMPACT","9399","Client Transport","31/08/2018"
"Wolverhampton City Council","http://opendatacommunities.org/id/metropolitan-district-council/wolverhampton","PREMIER INN","121.49","LAC Transitions Team","3811","Client Allowances","31/08/2018"
"Wolverhampton City Council","http://opendatacommunities.org/id/metropolitan-district-council/wolverhampton","Amazon.co.uk","560.97","Strategic ICTS (ICT Serv Budget)","5969","Equipment - Purchase","31/08/2018"
"Wolverhampton City Council","http://opendatacommunities.org/id/metropolitan-district-council/wolverhampton","FACEBK NTXFRF2D22","600.00","Service Wide","7311","Marketing \ Non-staff advertising","31/08/2018"
"Wolverhampton City Council","http://opendatacommunities.org/id/metropolitan-district-council/wolverhampton","ASDA SUPERSTORE","57.50","LAC Transitions Team","5411","Client Allowances","31/08/2018"
"Wolverhampton City Council","http://opendatacommunities.org/id/metropolitan-district-council/wolverhampton","EB  DCDC18 CONFERENCE","53.40","Archives","7399","Equipment - Purchase","31/08/2018"
"Wolverhampton City Council","http://opendatacommunities.org/id/metropolitan-district-council/wolverhampton","THE RED HOUSE","39.98","Connexions Contract","5691","Equipment - Purchase","31/08/2018"
"Wolverhampton City Council","http://opendatacommunities.org/id/metropolitan-district-council/wolverhampton","WIX.COM","9.97","Technical Support","5968","Subscriptions","31/08/2018"
"Wolverhampton City Council","http://opendatacommunities.org/id/metropolitan-district-council/wolverhampton","ASDA GROCERIES ONLINE","102.67","EIP Locality 3","5411","Grant Payments","31/08/2018"
"Wolverhampton City Council","http://opendatacommunities.org/id/metropolitan-district-council/wolverhampton","B & Q 1243","32.00","Learning Disabilities Management","5211","Materials","31/08/2018"
"Wolverhampton City Council","http://opendatacommunities.org/id/metropolitan-district-council/wolverhampton","WP-CENTRAL TAXIS L","8.20","LAC Team","4121","Public Transport","31/08/2018"
"Wolverhampton City Council","http://opendatacommunities.org/id/metropolitan-district-council/wolverhampton","Trainline","79.65","Head of Service - LAC","4112","Public Transport","31/08/2018"
"Wolverhampton City Council","http://opendatacommunities.org/id/metropolitan-district-council/wolverhampton","WWW.NISBETS.COM","104.32","Education Catering - General Overheads","5964","Equipment - Purchase","31/08/2018"
"Wolverhampton City Council","http://opendatacommunities.org/id/metropolitan-district-council/wolverhampton","WWW.IOSH.CO.UK","50.00","Central Training","8699","Training Expenses","31/08/2018"
"Wolverhampton City Council","http://opendatacommunities.org/id/metropolitan-district-council/wolverhampton","PAYPAL  CENTRALCONF","130.00","Workforce Development","7299","Training Expenses","31/08/2018"
"Wolverhampton City Council","http://opendatacommunities.org/id/metropolitan-district-council/wolverhampton","Amazon.co.uk","119.02","Fleet Management","5969","Materials","31/08/2018"
"Wolverhampton City Council","http://opendatacommunities.org/id/metropolitan-district-council/wolverhampton","GRO HM PASSPORT OFFICE","70.20","CIN/CP Social Work Unit - Area 8","9399","Section 17","31/08/2018"
"Wolverhampton City Council","http://opendatacommunities.org/id/metropolitan-district-council/wolverhampton","Trainline","9.75","CIN/CP Social Work Unit - Area 8","4112","Section 17","31/08/2018"
"Wolverhampton City Council","http://opendatacommunities.org/id/metropolitan-district-council/wolverhampton","WP-CENTRAL TAXIS L","8.80","CIN/CP Social Work Unit - Area 8","4121","Section 17","31/08/2018"
"Wolverhampton City Council","http://opendatacommunities.org/id/metropolitan-district-council/wolverhampton","AMZN MKTP UK AMAZON.CO","8.53","Members Expenses","5942","Equipment - Purchase","31/08/2018"
"Wolverhampton City Council","http://opendatacommunities.org/id/metropolitan-district-council/wolverhampton","AMZN Mktp UK","21.64","Learning Disabilities Management","5942","Books","30/08/2018"
"Wolverhampton City Council","http://opendatacommunities.org/id/metropolitan-district-council/wolverhampton","WILKO RETAIL LIMIT","4.17","Blakenhall Commty & Healthy Living Ctr","5722","Equipment - Purchase","30/08/2018"
"Wolverhampton City Council","http://opendatacommunities.org/id/metropolitan-district-council/wolverhampton","WICKES","5.00","Learning Disabilities Management","5211","Materials","30/08/2018"
"Wolverhampton City Council","http://opendatacommunities.org/id/metropolitan-district-council/wolverhampton","WICKES","5.00","Learning Disabilities Management","5211","Materials","30/08/2018"
"Wolverhampton City Council","http://opendatacommunities.org/id/metropolitan-district-council/wolverhampton","B & Q 1243","14.92","Learning Disabilities Management","5211","Materials","30/08/2018"
"Wolverhampton City Council","http://opendatacommunities.org/id/metropolitan-district-council/wolverhampton","SCREWFIX DIRECT LT","12.47","Car Parks Operational Staff","5211","Equipment - Purchase","30/08/2018"
"Wolverhampton City Council","http://opendatacommunities.org/id/metropolitan-district-council/wolverhampton","Central Taxis Limited","35.90","CIN/CP Social Work Unit - Area 5","4121","Section 17","30/08/2018"
"Wolverhampton City Council","http://opendatacommunities.org/id/metropolitan-district-council/wolverhampton","CLOCKING SYSTEM","594.00","Parks - Ranger Service","5085","Equipment - Purchase","30/08/2018"
"Wolverhampton City Council","http://opendatacommunities.org/id/metropolitan-district-council/wolverhampton","AMZN Mktp UK","11.47","Adoption and Residence Team & Allowances","5942","Stationery","30/08/2018"
"Wolverhampton City Council","http://opendatacommunities.org/id/metropolitan-district-council/wolverhampton","AMZ T G OUTLET","-101.99","EIP Locality 7","5999","Grant Payments","30/08/2018"
"Wolverhampton City Council","http://opendatacommunities.org/id/metropolitan-district-council/wolverhampton","EB  REDUCING LONG STAY","200.00","Adult Services - East","7399","Conference Expenses","30/08/2018"
"Wolverhampton City Council","http://opendatacommunities.org/id/metropolitan-district-council/wolverhampton","B&M RETAIL","18.32","LAC Transitions Team","5310","Independant Living Allowance","30/08/2018"
"Wolverhampton City Council","http://opendatacommunities.org/id/metropolitan-district-council/wolverhampton","WP-THE CRATFS COUNCIL","65.70","Arts Publicity","8398","Services - Supplies & Services to users","30/08/2018"
"Wolverhampton City Council","http://opendatacommunities.org/id/metropolitan-district-council/wolverhampton","WAITROSE 696","5.50","EIP Locality 3","5411","Grant Payments","30/08/2018"
"Wolverhampton City Council","http://opendatacommunities.org/id/metropolitan-district-council/wolverhampton","ASDA SUPERSTORE","11.74","EIP Locality 3","5411","Equipment - Purchase","30/08/2018"
"Wolverhampton City Council","http://opendatacommunities.org/id/metropolitan-district-council/wolverhampton","CardtronicsUK","101.85","Childrens with Disabilities Team","6011","Financial Assistance In Exceptional Circ","30/08/2018"
"Wolverhampton City Council","http://opendatacommunities.org/id/metropolitan-district-council/wolverhampton","CardtronicsUK","251.85","Childrens with Disabilities Team","6011","Financial Assistance In Exceptional Circ","30/08/2018"
"Wolverhampton City Council","http://opendatacommunities.org/id/metropolitan-district-council/wolverhampton","RUG DOCTOR","28.99","Towers Outdoor Education Centre","5713","Equipment - Purchase","30/08/2018"
"Wolverhampton City Council","http://opendatacommunities.org/id/metropolitan-district-council/wolverhampton","BARCLAYS","250.00","CIN/CP Social Work Unit - Area 6","6011","Financial Assistance In Exceptional Circ","30/08/2018"
"Wolverhampton City Council","http://opendatacommunities.org/id/metropolitan-district-council/wolverhampton","CAPITAL H&B LTD","62.99","IMPACT","7230","Equipment - Purchase","30/08/2018"
"Wolverhampton City Council","http://opendatacommunities.org/id/metropolitan-district-council/wolverhampton","SAINSBURYS PFS (1340)","1.67","Mayoral Expenses","5541","Vehicle Maintenance - Repairs","30/08/2018"
"Wolverhampton City Council","http://opendatacommunities.org/id/metropolitan-district-council/wolverhampton","WWW.ARGOS.CO.UK","49.53","LAC Transitions Team","5310","Client Allowances","30/08/2018"
"Wolverhampton City Council","http://opendatacommunities.org/id/metropolitan-district-council/wolverhampton","DENNISWILLECOM","74.54","Youth Offending Team","5999","Equipment - Purchase","30/08/2018"
"Wolverhampton City Council","http://opendatacommunities.org/id/metropolitan-district-council/wolverhampton","Virgin Trains","241.60","Adoption and Residence Team & Allowances","4112","Client Transport","30/08/2018"
"Wolverhampton City Council","http://opendatacommunities.org/id/metropolitan-district-council/wolverhampton","HOME BARGAINS WOLVERHA","9.93","Emergency Duty Team","5251","Equipment - Purchase","30/08/2018"
"Wolverhampton City Council","http://opendatacommunities.org/id/metropolitan-district-council/wolverhampton","WWW.WMCA.CO.UK","65.50","IMPACT","9399","Client Transport","30/08/2018"
"Wolverhampton City Council","http://opendatacommunities.org/id/metropolitan-district-council/wolverhampton","WWW.WMCA.CO.UK","65.50","IMPACT","9399","Client Transport","30/08/2018"
"Wolverhampton City Council","http://opendatacommunities.org/id/metropolitan-district-council/wolverhampton","THE RED HOUSE","33.32","IMPACT","5691","Clothing / Uniforms","30/08/2018"
"Wolverhampton City Council","http://opendatacommunities.org/id/metropolitan-district-council/wolverhampton","THE INTERNET SHOP","16.50","Technician","1520","R&M - Departmental response (Internal)","29/08/2018"
"Wolverhampton City Council","http://opendatacommunities.org/id/metropolitan-district-council/wolverhampton","DULUX DECORATOR CENTRE","175.00","Technician","5198","Materials","29/08/2018"
"Wolverhampton City Council","http://opendatacommunities.org/id/metropolitan-district-council/wolverhampton","WWW.KITLOCKER.COM","33.62","LAC Transitions Team","5655","Client Allowances","29/08/2018"
"Wolverhampton City Council","http://opendatacommunities.org/id/metropolitan-district-council/wolverhampton","NATIONWIDE","180.00","EIP Locality 2","6011","Grant Payments","29/08/2018"
"Wolverhampton City Council","http://opendatacommunities.org/id/metropolitan-district-council/wolverhampton","ASDA GEORGE COM LEEDS","37.00","LAC Transitions Team","5411","Client Allowances","29/08/2018"
"Wolverhampton City Council","http://opendatacommunities.org/id/metropolitan-district-council/wolverhampton","CONSTRUCTION INDUS","33.50","Commercial Management","5942","Books","29/08/2018"
"Wolverhampton City Council","http://opendatacommunities.org/id/metropolitan-district-council/wolverhampton","Virgin Trains","59.60","Fostering Team & Allowances","4112","Public Transport","29/08/2018"
"Wolverhampton City Council","http://opendatacommunities.org/id/metropolitan-district-council/wolverhampton","ITUNES.COM/BILL","0.79","Strategic ICTS (ICT Serv Budget)","5735","Computing - Purchase of Software","29/08/2018"
"Wolverhampton City Council","http://opendatacommunities.org/id/metropolitan-district-council/wolverhampton","WWW.ARGOS.CO.UK","103.94","LAC Transitions Team","5310","Client Allowances","29/08/2018"
"Wolverhampton City Council","http://opendatacommunities.org/id/metropolitan-district-council/wolverhampton","ARGOS RETAIL GROUP","33.32","Bradley Resource Centre","5310","Equipment - Purchase","29/08/2018"
"Wolverhampton City Council","http://opendatacommunities.org/id/metropolitan-district-council/wolverhampton","AMZN Mktp UK","23.04","Older People Provider Management","5942","Equipment - Purchase","29/08/2018"
"Wolverhampton City Council","http://opendatacommunities.org/id/metropolitan-district-council/wolverhampton","AMZN Mktp UK","70.83","Older People Provider Management","5942","Equipment - Purchase","29/08/2018"
"Wolverhampton City Council","http://opendatacommunities.org/id/metropolitan-district-council/wolverhampton","AMZN Mktp UK","4.48","Older People Provider Management","5942","Equipment - Purchase","29/08/2018"
"Wolverhampton City Council","http://opendatacommunities.org/id/metropolitan-district-council/wolverhampton","Trainline","18.35","Youth Offending Team","4112","Public Transport","29/08/2018"
"Wolverhampton City Council","http://opendatacommunities.org/id/metropolitan-district-council/wolverhampton","SCREWFIX WOLVERHAM","3.32","Cemeteries","5211","Materials","29/08/2018"
"Wolverhampton City Council","http://opendatacommunities.org/id/metropolitan-district-council/wolverhampton","WICKES","6.73","Public Conveniences","5211","Materials","29/08/2018"
"Wolverhampton City Council","http://opendatacommunities.org/id/metropolitan-district-council/wolverhampton","WILKO RETAIL LIMIT","4.58","Blakenhall Commty & Healthy Living Ctr","5722","Equipment - Purchase","29/08/2018"
"Wolverhampton City Council","http://opendatacommunities.org/id/metropolitan-district-council/wolverhampton","ALDI 94 772","24.73","EIP Locality 3","5411","Grant Payments","29/08/2018"
"Wolverhampton City Council","http://opendatacommunities.org/id/metropolitan-district-council/wolverhampton","HOMEBASE LTD 103","12.50","EIP Locality 3","5211","Equipment - Purchase","29/08/2018"
"Wolverhampton City Council","http://opendatacommunities.org/id/metropolitan-district-council/wolverhampton","NEXT DIRECTORY","21.00","CIN/CP Social Work Unit - Area 5","5651","Section 17","29/08/2018"
"Wolverhampton City Council","http://opendatacommunities.org/id/metropolitan-district-council/wolverhampton","MARKS&SPENCER PLC","17.00","CIN/CP Social Work Unit - Area 5","5411","Section 17","29/08/2018"
"Wolverhampton City Council","http://opendatacommunities.org/id/metropolitan-district-council/wolverhampton","ASDA GEORGE COM LEEDS","13.00","CIN/CP Social Work Unit - Area 5","5411","Section 17","29/08/2018"
"Wolverhampton City Council","http://opendatacommunities.org/id/metropolitan-district-council/wolverhampton","Trainline","9.75","CIN/CP Social Work Unit - Area 8","4112","Section 17","29/08/2018"
"Wolverhampton City Council","http://opendatacommunities.org/id/metropolitan-district-council/wolverhampton","NETFLIX.COM","5.99","Technician","4899","Comms - Telephone Rental","28/08/2018"
"Wolverhampton City Council","http://opendatacommunities.org/id/metropolitan-district-council/wolverhampton","AMZN MKTP UK AMAZON.CO","53.62","Education Business Partnership","5942","Books","28/08/2018"
"Wolverhampton City Council","http://opendatacommunities.org/id/metropolitan-district-council/wolverhampton","AMZN Mktp UK","7.90","Blakenhall Commty & Healthy Living Ctr","5942","Equipment - Purchase","28/08/2018"
"Wolverhampton City Council","http://opendatacommunities.org/id/metropolitan-district-council/wolverhampton","ASDA GROCERIES ONLINE","52.93","Ernest Bold Court","5411","Provisions (Not for resale)","28/08/2018"
"Wolverhampton City Council","http://opendatacommunities.org/id/metropolitan-district-council/wolverhampton","Central Taxis Limited","8.20","CIN/CP Social Work Unit - Area 5","4121","Section 17","27/08/2018"
"Wolverhampton City Council","http://opendatacommunities.org/id/metropolitan-district-council/wolverhampton","ALDI 78 772","8.77","Aldersley Leisure Village","5411","Provisions (Not for resale)","27/08/2018"
"Wolverhampton City Council","http://opendatacommunities.org/id/metropolitan-district-council/wolverhampton","WWW.WMCA.CO.UK","113.00","IMPACT","9399","Client Transport","27/08/2018"
"Wolverhampton City Council","http://opendatacommunities.org/id/metropolitan-district-council/wolverhampton","POST OFFICE COUNTER","8.60","Adoption and Residence Team & Allowances","9402","Comms - Postage","27/08/2018"
"Wolverhampton City Council","http://opendatacommunities.org/id/metropolitan-district-council/wolverhampton","DUDLEY MBC  INTERN","110.00","Bert Williams Leisure Centre","8999","Services - Professional Fees","27/08/2018"
"Wolverhampton City Council","http://opendatacommunities.org/id/metropolitan-district-council/wolverhampton","CUMMINGS BROTHERS LOCK","35.83","Public Conveniences","7399","Equipment - Purchase","27/08/2018"
"Wolverhampton City Council","http://opendatacommunities.org/id/metropolitan-district-council/wolverhampton","CUMMINGS BROTHERS LOCK","166.67","Public Conveniences","7399","Equipment - Purchase","27/08/2018"
"Wolverhampton City Council","http://opendatacommunities.org/id/metropolitan-district-council/wolverhampton","ASDA GROCERIES ONLINE","-1.47","Upper Pendeford Farm Childrens Home","5411","Provisions (Not for resale)","27/08/2018"
"Wolverhampton City Council","http://opendatacommunities.org/id/metropolitan-district-council/wolverhampton","000002200500000","240.00","CIN/CP Social Work Unit - Area 6","6011","Financial Assistance In Exceptional Circ","27/08/2018"
"Wolverhampton City Council","http://opendatacommunities.org/id/metropolitan-district-council/wolverhampton","Amazon.co.uk","35.26","Upper Pendeford Farm Childrens Home","5969","Equipment - Purchase","27/08/2018"
"Wolverhampton City Council","http://opendatacommunities.org/id/metropolitan-district-council/wolverhampton","ASDA GROCERIES ONLINE","202.75","Upper Pendeford Farm Childrens Home","5411","Provisions (Not for resale)","27/08/2018"
"Wolverhampton City Council","http://opendatacommunities.org/id/metropolitan-district-council/wolverhampton","Amazon.co.uk","4.07","Upper Pendeford Farm Childrens Home","5969","Stationery","27/08/2018"
"Wolverhampton City Council","http://opendatacommunities.org/id/metropolitan-district-council/wolverhampton","Central Taxis Limited","12.90","LAC Team","4121","Financial Assistance In Exceptional Circ","27/08/2018"
"Wolverhampton City Council","http://opendatacommunities.org/id/metropolitan-district-council/wolverhampton","Central Taxis Limited","10.70","LAC Team","4121","Client Transport","27/08/2018"
"Wolverhampton City Council","http://opendatacommunities.org/id/metropolitan-district-council/wolverhampton","Amazon.co.uk","108.43","Language Studies Delivery Area","5969","Books","27/08/2018"
"Wolverhampton City Council","http://opendatacommunities.org/id/metropolitan-district-council/wolverhampton","COVENTRY UNIVERSITY","300.00","LAC Transitions Team","5947","Accommodation Costs","27/08/2018"
"Wolverhampton City Council","http://opendatacommunities.org/id/metropolitan-district-council/wolverhampton","Central Taxis Limited","11.00","LAC Team","4121","Financial Assistance In Exceptional Circ","27/08/2018"
"Wolverhampton City Council","http://opendatacommunities.org/id/metropolitan-district-council/wolverhampton","WOLVERHAMPTON GRAND TH","18.50","Ernest Bold Court","7922","Services - Supplies & Services to users","27/08/2018"
"Wolverhampton City Council","http://opendatacommunities.org/id/metropolitan-district-council/wolverhampton","POUNDLAND LTD","4.00","EIP Locality 1","5310","Equipment - Purchase","27/08/2018"
"Wolverhampton City Council","http://opendatacommunities.org/id/metropolitan-district-council/wolverhampton","SECURITY INDUSTRY","220.00","Transportation General","7393","Fixtures and Fittings - R&M","27/08/2018"
"Wolverhampton City Council","http://opendatacommunities.org/id/metropolitan-district-council/wolverhampton","AMZN Mktp UK","13.32","Older People Provider Management","5942","Equipment - Purchase","27/08/2018"
"Wolverhampton City Council","http://opendatacommunities.org/id/metropolitan-district-council/wolverhampton","WWW.PROVAC.CO.UK","29.96","Blakenhall Commty & Healthy Living Ctr","2842","Cleaning Supplies and Materials","27/08/2018"
"Wolverhampton City Council","http://opendatacommunities.org/id/metropolitan-district-council/wolverhampton","AMZN Mktp UK","7.91","Blakenhall Commty & Healthy Living Ctr","5942","Equipment - Purchase","27/08/2018"
"Wolverhampton City Council","http://opendatacommunities.org/id/metropolitan-district-council/wolverhampton","Central Taxis Limited","8.50","LAC Team","4121","Public Transport","27/08/2018"
"Wolverhampton City Council","http://opendatacommunities.org/id/metropolitan-district-council/wolverhampton","Central Taxis Limited","16.00","LAC Team","4121","Client Transport","27/08/2018"
"Wolverhampton City Council","http://opendatacommunities.org/id/metropolitan-district-council/wolverhampton","HERON FOODS LTD","12.56","Ernest Bold Court","5499","Provisions (Not for resale)","27/08/2018"
"Wolverhampton City Council","http://opendatacommunities.org/id/metropolitan-district-council/wolverhampton","ASDA GROCERIES ONLINE","-0.17","Ernest Bold Court","5411","Provisions (Not for resale)","27/08/2018"
"Wolverhampton City Council","http://opendatacommunities.org/id/metropolitan-district-council/wolverhampton","ASDA GROCERIES ONLINE","5.00","Ernest Bold Court","5411","Provisions (Not for resale)","27/08/2018"
"Wolverhampton City Council","http://opendatacommunities.org/id/metropolitan-district-council/wolverhampton","ASDA GROCERIES ONLINE","49.88","Ernest Bold Court","5411","Provisions (Not for resale)","27/08/2018"
"Wolverhampton City Council","http://opendatacommunities.org/id/metropolitan-district-council/wolverhampton","AMZN MKTP UK AMAZON.CO","128.15","Waste Coll & Recycling Serv General","5942","Equipment - Purchase","27/08/2018"
"Wolverhampton City Council","http://opendatacommunities.org/id/metropolitan-district-council/wolverhampton","Central Taxis Limited","5.40","CIN/CP Social Work Unit - Area 5","4121","Section 17","27/08/2018"
"Wolverhampton City Council","http://opendatacommunities.org/id/metropolitan-district-council/wolverhampton","WM MORRISONS","24.00","Civic Centre Catering","5411","Provisions (Not for resale)","27/08/2018"
"Wolverhampton City Council","http://opendatacommunities.org/id/metropolitan-district-council/wolverhampton","ASDA SUPERSTORE","20.72","Civic Centre Catering","5411","Provisions (Not for resale)","27/08/2018"
"Wolverhampton City Council","http://opendatacommunities.org/id/metropolitan-district-council/wolverhampton","THE SOLICITORS GROUP","102.00","Central Training","8244","Training Expenses","27/08/2018"
"Wolverhampton City Council","http://opendatacommunities.org/id/metropolitan-district-council/wolverhampton","WWW.FTA.CO.UK","350.00","Fleet Management","8999","Materials","27/08/2018"
"Wolverhampton City Council","http://opendatacommunities.org/id/metropolitan-district-council/wolverhampton","CITY OF WOLVERHAMPTON","20.00","Head of Service - CINCP","9399","Services - Professional Fees","27/08/2018"
"Wolverhampton City Council","http://opendatacommunities.org/id/metropolitan-district-council/wolverhampton","CITY OF WOLVERHAMPTON","10.00","Head of Service - CINCP","9399","Services - Professional Fees","27/08/2018"
"Wolverhampton City Council","http://opendatacommunities.org/id/metropolitan-district-council/wolverhampton","Virgin Trains","198.20","Mayoral Expenses","4112","Public Transport","27/08/2018"
"Wolverhampton City Council","http://opendatacommunities.org/id/metropolitan-district-council/wolverhampton","Virgin Trains","177.20","Members Expenses","4112","Public Transport","27/08/2018"
"Wolverhampton City Council","http://opendatacommunities.org/id/metropolitan-district-council/wolverhampton","MATALAN","63.33","Ernest Bold Court","5691","Equipment - Purchase","27/08/2018"
"Wolverhampton City Council","http://opendatacommunities.org/id/metropolitan-district-council/wolverhampton","B&M RETAIL","-14.99","Bradley Resource Centre","5310","Equipment - Purchase","24/08/2018"
"Wolverhampton City Council","http://opendatacommunities.org/id/metropolitan-district-council/wolverhampton","Cross Country Trains","7.80","Head of Strategic Commissioning � People","4112","Public Transport","24/08/2018"
"Wolverhampton City Council","http://opendatacommunities.org/id/metropolitan-district-council/wolverhampton","CHARTERED INSTITUTE OF","95.00","City Centre","8398","Services - Fees and Charges","24/08/2018"
"Wolverhampton City Council","http://opendatacommunities.org/id/metropolitan-district-council/wolverhampton","LOYD 37 CHURCH STREET","200.00","Duke Street Bungalows","6011","Provisions (Not for resale)","24/08/2018"
"Wolverhampton City Council","http://opendatacommunities.org/id/metropolitan-district-council/wolverhampton","FAMILY LINKS","183.33","Fostering Team & Allowances","8398","Services - Supplies & Services to users","24/08/2018"
"Wolverhampton City Council","http://opendatacommunities.org/id/metropolitan-district-council/wolverhampton","POST OFFICE COUNTER","256.50","Fostering Team & Allowances","9402","Comms - Postage","24/08/2018"
"Wolverhampton City Council","http://opendatacommunities.org/id/metropolitan-district-council/wolverhampton","ELUCIDATE CONTRACTOR S","54.17","IMPACT","8999","Services - Professional Fees","24/08/2018"
"Wolverhampton City Council","http://opendatacommunities.org/id/metropolitan-district-council/wolverhampton","NAMESCO","38.97","Public Health Support Costs","4816","Computing - Purchase of Software","24/08/2018"
"Wolverhampton City Council","http://opendatacommunities.org/id/metropolitan-district-council/wolverhampton","UNTOUCHABLES","6.49","Cemeteries","5231","Materials","24/08/2018"
"Wolverhampton City Council","http://opendatacommunities.org/id/metropolitan-district-council/wolverhampton","B&M RETAIL LTD","128.93","LAC Transitions Team","5310","Equipment - Purchase","24/08/2018"
"Wolverhampton City Council","http://opendatacommunities.org/id/metropolitan-district-council/wolverhampton","ELEGANT EVENT ESSENTIA","156.75","Bantock House Museum","5999","Materials","24/08/2018"
"Wolverhampton City Council","http://opendatacommunities.org/id/metropolitan-district-council/wolverhampton","AMZN MKTP UK AMAZON.CO","39.15","EIP Locality 6","5942","Equipment - Purchase","24/08/2018"
"Wolverhampton City Council","http://opendatacommunities.org/id/metropolitan-district-council/wolverhampton","REGISTRARS OFFICE","50.00","Adoption and Residence Team & Allowances","8299","Services - Fees and Charges","24/08/2018"
"Wolverhampton City Council","http://opendatacommunities.org/id/metropolitan-district-council/wolverhampton","AMZN Mktp UK","19.99","Business Manager - Place","5942","Books","24/08/2018"
"Wolverhampton City Council","http://opendatacommunities.org/id/metropolitan-district-council/wolverhampton","Amazon.co.uk","362.46","Language Studies Delivery Area","5969","Books","24/08/2018"
"Wolverhampton City Council","http://opendatacommunities.org/id/metropolitan-district-council/wolverhampton","Amazon.co.uk","170.68","Language Studies Delivery Area","5969","Books","24/08/2018"
"Wolverhampton City Council","http://opendatacommunities.org/id/metropolitan-district-council/wolverhampton","PREMIER INN 44536560","106.50","Art Gallery","5812","Educ Trips, Holidays, Outings, Activity","24/08/2018"
"Wolverhampton City Council","http://opendatacommunities.org/id/metropolitan-district-council/wolverhampton","AMZN Mktp UK","16.50","Archives","5942","Equipment - Purchase","24/08/2018"
"Wolverhampton City Council","http://opendatacommunities.org/id/metropolitan-district-council/wolverhampton","BROOKLANDS PHARMAC","11.00","EIP Locality 1","5912","Grant Payments","24/08/2018"
"Wolverhampton City Council","http://opendatacommunities.org/id/metropolitan-district-council/wolverhampton","CILEX LAW SCHOOL LIMIT","21.00","Central Training","8244","Training Expenses","24/08/2018"
"Wolverhampton City Council","http://opendatacommunities.org/id/metropolitan-district-council/wolverhampton","THE COAL AUTHORITY","380.63","Disposal Costs","9399","Services - Professional Fees","24/08/2018"
"Wolverhampton City Council","http://opendatacommunities.org/id/metropolitan-district-council/wolverhampton","Trainline","121.00","Inclusion Support","4112","Public Transport","24/08/2018"
"Wolverhampton City Council","http://opendatacommunities.org/id/metropolitan-district-council/wolverhampton","WWW.FTA.CO.UK","380.00","Fleet Management","8999","Stationery","24/08/2018"
"Wolverhampton City Council","http://opendatacommunities.org/id/metropolitan-district-council/wolverhampton","ASDA GROCERIES ONLINE","-1.59","Duke Street Bungalows","5411","Provisions (Not for resale)","24/08/2018"
"Wolverhampton City Council","http://opendatacommunities.org/id/metropolitan-district-council/wolverhampton","AMZN Mktp UK","28.66","Wolverhampton Indoor and Open Market","5942","Equipment - Purchase","24/08/2018"
"Wolverhampton City Council","http://opendatacommunities.org/id/metropolitan-district-council/wolverhampton","IKEA LIMITED","160.00","LAC Transitions Team","5712","Equipment - Purchase","23/08/2018"
"Wolverhampton City Council","http://opendatacommunities.org/id/metropolitan-district-council/wolverhampton","WWW.DAVIESTIMBER.CO.UK","75.85","Celebrating Age-ACE","5211","Materials","23/08/2018"
"Wolverhampton City Council","http://opendatacommunities.org/id/metropolitan-district-council/wolverhampton","Amazon.co.uk","6.99","Citizenship, Language & Learning","5969","Equipment - Purchase","23/08/2018"
"Wolverhampton City Council","http://opendatacommunities.org/id/metropolitan-district-council/wolverhampton","VILLAGE HARDWARE","4.95","Aldersley Leisure Village","5251","Equipment - Purchase","23/08/2018"
"Wolverhampton City Council","http://opendatacommunities.org/id/metropolitan-district-council/wolverhampton","000002200500000","250.00","CIN/CP Social Work Unit - Area 6","6011","Financial Assistance In Exceptional Circ","23/08/2018"
"Wolverhampton City Council","http://opendatacommunities.org/id/metropolitan-district-council/wolverhampton","BLOXWICH  SST","7.20","Economic Development","4112","Public Transport","23/08/2018"
"Wolverhampton City Council","http://opendatacommunities.org/id/metropolitan-district-council/wolverhampton","Trainline","61.67","Art Gallery","4112","Public Transport","23/08/2018"
"Wolverhampton City Council","http://opendatacommunities.org/id/metropolitan-district-council/wolverhampton","PREMIER INN","55.83","Fostering Team & Allowances","3811","Services - Supplies & Services to users","23/08/2018"
"Wolverhampton City Council","http://opendatacommunities.org/id/metropolitan-district-council/wolverhampton","CLOCKING SYSTEM","193.00","Ground Maintenance East","5085","Equipment - Purchase","23/08/2018"
"Wolverhampton City Council","http://opendatacommunities.org/id/metropolitan-district-council/wolverhampton","AMZN Mktp UK","13.32","Headstart Phase 3","5942","Materials","23/08/2018"
"Wolverhampton City Council","http://opendatacommunities.org/id/metropolitan-district-council/wolverhampton","OURWEIGHLTD","58.00","EIP Locality 6","5085","Equipment - Purchase","23/08/2018"
"Wolverhampton City Council","http://opendatacommunities.org/id/metropolitan-district-council/wolverhampton","WOLVERHAMPTON T/O","76.90","Adult Services - East","4112","Public Transport","23/08/2018"
"Wolverhampton City Council","http://opendatacommunities.org/id/metropolitan-district-council/wolverhampton","WOLVERHAMPTON T/O","76.90","Hospital Team","4112","Public Transport","23/08/2018"
"Wolverhampton City Council","http://opendatacommunities.org/id/metropolitan-district-council/wolverhampton","Amazon.co.uk","20.79","Learning Disabilities Management","5969","Stationery","23/08/2018"
"Wolverhampton City Council","http://opendatacommunities.org/id/metropolitan-district-council/wolverhampton","CardtronicsUK","10.00","EIP Locality 3","6011","Grant Payments","23/08/2018"
"Wolverhampton City Council","http://opendatacommunities.org/id/metropolitan-district-council/wolverhampton","AMZN Mktp UK","11.24","Ernest Bold Court","5942","Equipment - Purchase","23/08/2018"
"Wolverhampton City Council","http://opendatacommunities.org/id/metropolitan-district-council/wolverhampton","ICELAND","4.29","Carers Support","5411","Provisions (Not for resale)","23/08/2018"
"Wolverhampton City Council","http://opendatacommunities.org/id/metropolitan-district-council/wolverhampton","Amazon Prime","7.99","Technical Support","5968","Subscriptions","23/08/2018"
"Wolverhampton City Council","http://opendatacommunities.org/id/metropolitan-district-council/wolverhampton","HOMEBASE LTD 103","25.00","EIP Locality 3","5211","Equipment - Purchase","23/08/2018"
"Wolverhampton City Council","http://opendatacommunities.org/id/metropolitan-district-council/wolverhampton","PREMIER INN","67.00","LAC Team","3811","Services - Supplies & Services to users","23/08/2018"
"Wolverhampton City Council","http://opendatacommunities.org/id/metropolitan-district-council/wolverhampton","WEBSTAFF/ATP PAYMENTS","22.50","Head of Service - CINCP","9399","Services - Professional Fees","23/08/2018"
"Wolverhampton City Council","http://opendatacommunities.org/id/metropolitan-district-council/wolverhampton","ASDA GROCERIES ONLINE","-1.20","Duke Street Bungalows","5411","Provisions (Not for resale)","23/08/2018"
"Wolverhampton City Council","http://opendatacommunities.org/id/metropolitan-district-council/wolverhampton","ASDA GROCERIES ONLINE","107.85","Duke Street Bungalows","5411","Provisions (Not for resale)","23/08/2018"
"Wolverhampton City Council","http://opendatacommunities.org/id/metropolitan-district-council/wolverhampton","MACHINE MART LTD","55.95","Northicote Farm","5722","Equipment - R & M","23/08/2018"
"Wolverhampton City Council","http://opendatacommunities.org/id/metropolitan-district-council/wolverhampton","CARVER/WOLVERHAMPTON/L","118.07","Northicote Farm","5211","Materials","23/08/2018"
"Wolverhampton City Council","http://opendatacommunities.org/id/metropolitan-district-council/wolverhampton","CARVER/WOLVERHAMPTON/L","10.77","Northicote Farm","5211","Materials","23/08/2018"
"Wolverhampton City Council","http://opendatacommunities.org/id/metropolitan-district-council/wolverhampton","CARVER/WOLVERHAMPTON/L","97.49","Northicote Farm","5211","Materials","23/08/2018"
"Wolverhampton City Council","http://opendatacommunities.org/id/metropolitan-district-council/wolverhampton","POST OFFICE COUNTER","8.60","Adoption and Residence Team & Allowances","9402","Comms - Postage","22/08/2018"
"Wolverhampton City Council","http://opendatacommunities.org/id/metropolitan-district-council/wolverhampton","GOOGLE  ADS9680351324","500.00","Communications & Marketing - General","5968","Subscriptions","22/08/2018"
"Wolverhampton City Council","http://opendatacommunities.org/id/metropolitan-district-council/wolverhampton","WWW.PARTYPIECES.CO.UK","19.39","WV Active Marketing","5969","Equipment - Purchase","22/08/2018"
"Wolverhampton City Council","http://opendatacommunities.org/id/metropolitan-district-council/wolverhampton","ROYAL BK OF SCOTLAND","100.00","Headstart Phase 3","6011","Financial Assistance In Exceptional Circ","22/08/2018"
"Wolverhampton City Council","http://opendatacommunities.org/id/metropolitan-district-council/wolverhampton","AMZN MKTP UK AMAZON.CO","49.87","Education Business Partnership","5942","Books","22/08/2018"
"Wolverhampton City Council","http://opendatacommunities.org/id/metropolitan-district-council/wolverhampton","SAINSBURYS PFS (1340)","1.67","Mayoral Expenses","5541","Vehicle Maintenance - Repairs","22/08/2018"
"Wolverhampton City Council","http://opendatacommunities.org/id/metropolitan-district-council/wolverhampton","SAINSBURYS SACAT (2340","5.60","Mayoral Expenses","5411","Hospitality","22/08/2018"
"Wolverhampton City Council","http://opendatacommunities.org/id/metropolitan-district-council/wolverhampton","CURRYS ONLINE","133.32","EIP Locality 6","5732","Grant Payments","22/08/2018"
"Wolverhampton City Council","http://opendatacommunities.org/id/metropolitan-district-council/wolverhampton","Amazon.co.uk","9.50","EIP Locality 6","5969","Stationery","22/08/2018"
"Wolverhampton City Council","http://opendatacommunities.org/id/metropolitan-district-council/wolverhampton","ASDA STORE 4351","4.92","LAC Transitions Team","5411","Client Allowances","22/08/2018"
"Wolverhampton City Council","http://opendatacommunities.org/id/metropolitan-district-council/wolverhampton","ASDA STORE 4351","132.92","LAC Transitions Team","5411","Client Allowances","22/08/2018"
"Wolverhampton City Council","http://opendatacommunities.org/id/metropolitan-district-council/wolverhampton","PP 9151CODE","-1.00","Strategic ICTS (ICT Serv Budget)","8999","Services - Professional Fees","22/08/2018"
"Wolverhampton City Council","http://opendatacommunities.org/id/metropolitan-district-council/wolverhampton","Amazon.co.uk","69.33","Strategic ICTS (ICT Serv Budget)","5969","Equipment - Purchase","22/08/2018"
"Wolverhampton City Council","http://opendatacommunities.org/id/metropolitan-district-council/wolverhampton","PAYPAL  BIGDUGLIMIT","2322.00","Strategic ICTS (ICT Serv Budget)","5085","Equipment - Purchase","22/08/2018"
"Wolverhampton City Council","http://opendatacommunities.org/id/metropolitan-district-council/wolverhampton","ASDA GROCERIES ONLINE","-44.56","Upper Pendeford Farm Childrens Home","5411","Provisions (Not for resale)","22/08/2018"
"Wolverhampton City Council","http://opendatacommunities.org/id/metropolitan-district-council/wolverhampton","ALDI 78 772","136.13","Upper Pendeford Farm Childrens Home","5411","Provisions (Not for resale)","22/08/2018"
"Wolverhampton City Council","http://opendatacommunities.org/id/metropolitan-district-council/wolverhampton","LOYD THREE TUNS PDE","240.00","Childrens with Disabilities Team","6011","Financial Assistance In Exceptional Circ","22/08/2018"
"Wolverhampton City Council","http://opendatacommunities.org/id/metropolitan-district-council/wolverhampton","DRAYTON MANOR PARK LIM","29.50","Upper Pendeford Farm Childrens Home","7996","Educ Trips, Holidays, Outings, Activity","22/08/2018"
"Wolverhampton City Council","http://opendatacommunities.org/id/metropolitan-district-council/wolverhampton","WWW.GDHA.COM","45.00","Upper Pendeford Farm Childrens Home","5065","Equipment - R & M","22/08/2018"
"Wolverhampton City Council","http://opendatacommunities.org/id/metropolitan-district-council/wolverhampton","Amazon.co.uk","28.97","Global Budgets","5969","Books","22/08/2018"
"Wolverhampton City Council","http://opendatacommunities.org/id/metropolitan-district-council/wolverhampton","Virgin Trains","-72.50","LAC Team","4112","Public Transport","22/08/2018"
"Wolverhampton City Council","http://opendatacommunities.org/id/metropolitan-district-council/wolverhampton","Virgin Trains","-18.10","LAC Team","4112","Public Transport","22/08/2018"
"Wolverhampton City Council","http://opendatacommunities.org/id/metropolitan-district-council/wolverhampton","ASDA GROCERIES ONLINE","48.58","Upper Pendeford Farm Childrens Home","5411","Provisions (Not for resale)","22/08/2018"
"Wolverhampton City Council","http://opendatacommunities.org/id/metropolitan-district-council/wolverhampton","Virgin Trains","220.10","LAC Team","4112","Public Transport","22/08/2018"
"Wolverhampton City Council","http://opendatacommunities.org/id/metropolitan-district-council/wolverhampton","OFSTED INTERNET","3519.00","Head of Service Specialist Int Support","9399","Services - Fees and Charges","22/08/2018"
"Wolverhampton City Council","http://opendatacommunities.org/id/metropolitan-district-council/wolverhampton","WWW.TOBYGIFTS.CO.UK","40.00","CIN/CP Social Work Unit - Area 4","5999","Section 17","22/08/2018"
"Wolverhampton City Council","http://opendatacommunities.org/id/metropolitan-district-council/wolverhampton","EB  TACKLING DVA IN FA","78.00","Member Training","7399","Training Expenses","22/08/2018"
"Wolverhampton City Council","http://opendatacommunities.org/id/metropolitan-district-council/wolverhampton","WWW.CIPFA.ORG.UK/PFMCO","195.00","Member Training","8699","Training Expenses","22/08/2018"
"Wolverhampton City Council","http://opendatacommunities.org/id/metropolitan-district-council/wolverhampton","WWW.CIPFA.ORG.UK/PFMCO","345.00","Central Training","8699","Training Expenses","22/08/2018"
"Wolverhampton City Council","http://opendatacommunities.org/id/metropolitan-district-council/wolverhampton","NO 5 CHAMBERS LTD","90.00","Central Training","8111","Training Expenses","22/08/2018"
"Wolverhampton City Council","http://opendatacommunities.org/id/metropolitan-district-council/wolverhampton","GRO HM PASSPORT OFFICE","23.40","Head of Service - CINCP","9399","Services - Professional Fees","22/08/2018"
"Wolverhampton City Council","http://opendatacommunities.org/id/metropolitan-district-council/wolverhampton","Central Taxis Limited","23.80","CIN/CP Social Work Unit - Area 5","4121","Section 17","22/08/2018"
"Wolverhampton City Council","http://opendatacommunities.org/id/metropolitan-district-council/wolverhampton","AMZN MKTP UK AMAZON.CO","4.16","Community Enablement","5942","Equipment - Health and Safety","22/08/2018"
"Wolverhampton City Council","http://opendatacommunities.org/id/metropolitan-district-council/wolverhampton","AMZN Mktp UK","16.24","EIP Locality 7","5942","Equipment - Purchase","22/08/2018"
"Wolverhampton City Council","http://opendatacommunities.org/id/metropolitan-district-council/wolverhampton","Trainline","40.25","Technician","4112","Training Expenses","21/08/2018"
"Wolverhampton City Council","http://opendatacommunities.org/id/metropolitan-district-council/wolverhampton","ARGOS LTD","25.99","LAC Transitions Team","5310","Client Allowances","21/08/2018"
"Wolverhampton City Council","http://opendatacommunities.org/id/metropolitan-district-council/wolverhampton","CURRYS ONLINE","159.99","LAC Transitions Team","5732","Client Allowances","21/08/2018"
"Wolverhampton City Council","http://opendatacommunities.org/id/metropolitan-district-council/wolverhampton","POST OFFICE COUNTER","5.05","Adoption and Residence Team & Allowances","9402","Comms - Postage","21/08/2018"
"Wolverhampton City Council","http://opendatacommunities.org/id/metropolitan-district-council/wolverhampton","Trainline","202.69","CIN/CP Social Work Unit - Area 6","4112","Public Transport","21/08/2018"
"Wolverhampton City Council","http://opendatacommunities.org/id/metropolitan-district-council/wolverhampton","ASDA GROCERIES ONLINE","167.32","EIP Locality 4","5411","Grant Payments","21/08/2018"
"Wolverhampton City Council","http://opendatacommunities.org/id/metropolitan-district-council/wolverhampton","SPORTSDIRECT.COM","131.61","Aldersley Leisure Village","5941","Equipment - Purchase","21/08/2018"
"Wolverhampton City Council","http://opendatacommunities.org/id/metropolitan-district-council/wolverhampton","VILLAGE HARDWARE","54.00","Aldersley Leisure Village","5251","Equipment - Purchase","21/08/2018"
"Wolverhampton City Council","http://opendatacommunities.org/id/metropolitan-district-council/wolverhampton","THE REDAN INN","70.83","Fostering Team & Allowances","5812","Educ Trips, Holidays, Outings, Activity","21/08/2018"
"Wolverhampton City Council","http://opendatacommunities.org/id/metropolitan-district-council/wolverhampton","AMZN MKTP UK AMAZON.CO","33.98","Education Business Partnership","5942","Books","21/08/2018"
"Wolverhampton City Council","http://opendatacommunities.org/id/metropolitan-district-council/wolverhampton","AMZN MKTP UK AMAZON.CO","24.00","Education Business Partnership","5942","Books","21/08/2018"
"Wolverhampton City Council","http://opendatacommunities.org/id/metropolitan-district-council/wolverhampton","AMZN MKTP UK AMAZON.CO","9.73","Education Business Partnership","5942","Books","21/08/2018"
"Wolverhampton City Council","http://opendatacommunities.org/id/metropolitan-district-council/wolverhampton","AMZN MKTP UK AMAZON.CO","3.93","Education Business Partnership","5942","Books","21/08/2018"
"Wolverhampton City Council","http://opendatacommunities.org/id/metropolitan-district-council/wolverhampton","WWW.BANDFORHIRE.NET","385.00","Mayoral Expenses","7929","Services - Professional Fees","21/08/2018"
"Wolverhampton City Council","http://opendatacommunities.org/id/metropolitan-district-council/wolverhampton","PAVILION HOUSE","150.00","LAC Transitions Team","8999","Client Allowances","21/08/2018"
"Wolverhampton City Council","http://opendatacommunities.org/id/metropolitan-district-council/wolverhampton","ITUNES.COM/BILL","0.10","Strategic ICTS (ICT Serv Budget)","5735","Computing - Purchase of Software","21/08/2018"
"Wolverhampton City Council","http://opendatacommunities.org/id/metropolitan-district-council/wolverhampton","AMZN Mktp UK","133.32","Strategic ICTS (ICT Serv Budget)","5942","Computing - Purchase of Hardware","21/08/2018"
"Wolverhampton City Council","http://opendatacommunities.org/id/metropolitan-district-council/wolverhampton","DRAYTON MANOR PARK LIM","80.00","Upper Pendeford Farm Childrens Home","7996","Educ Trips, Holidays, Outings, Activity","21/08/2018"
"Wolverhampton City Council","http://opendatacommunities.org/id/metropolitan-district-council/wolverhampton","ARGOS LTD","40.83","LAC Transitions Team","5310","Independant Living Allowance","21/08/2018"
"Wolverhampton City Council","http://opendatacommunities.org/id/metropolitan-district-council/wolverhampton","ASDA SUPERSTORE","15.42","LAC Transitions Team","5411","Independant Living Allowance","21/08/2018"
"Wolverhampton City Council","http://opendatacommunities.org/id/metropolitan-district-council/wolverhampton","CUMMINGS BROTHERS LOCK","3.29","Culwell Street Depot","7399","R&M - Departmental planned (external)","21/08/2018"
"Wolverhampton City Council","http://opendatacommunities.org/id/metropolitan-district-council/wolverhampton","Trainline","18.75","CIN/CP Social Work Unit - Area 8","4112","Public Transport","21/08/2018"
"Wolverhampton City Council","http://opendatacommunities.org/id/metropolitan-district-council/wolverhampton","AMZN Mktp UK","104.16","Ernest Bold Court","5942","Equipment - Purchase","21/08/2018"
"Wolverhampton City Council","http://opendatacommunities.org/id/metropolitan-district-council/wolverhampton","AMZN MKTP UK AMAZON.CO","4.16","Head of Strategic Commissioning � People","5942","Books","21/08/2018"
"Wolverhampton City Council","http://opendatacommunities.org/id/metropolitan-district-council/wolverhampton","ASDA GROCERIES ONLINE","-0.22","Ernest Bold Court","5411","Provisions (Not for resale)","21/08/2018"
"Wolverhampton City Council","http://opendatacommunities.org/id/metropolitan-district-council/wolverhampton","Virgin Trains","110.60","LAC Team","4112","Public Transport","21/08/2018"
"Wolverhampton City Council","http://opendatacommunities.org/id/metropolitan-district-council/wolverhampton","ASDA GROCERIES ONLINE","52.29","Ernest Bold Court","5411","Provisions (Not for resale)","21/08/2018"
"Wolverhampton City Council","http://opendatacommunities.org/id/metropolitan-district-council/wolverhampton","TVLICENSING.CO.UK","125.42","LAC Transitions Team","7392","Client Allowances","21/08/2018"
"Wolverhampton City Council","http://opendatacommunities.org/id/metropolitan-district-council/wolverhampton","BRITANNIA","39.50","CIN/CP Social Work Unit - Area 5","7011","No Recourse to Public Funds","21/08/2018"
"Wolverhampton City Council","http://opendatacommunities.org/id/metropolitan-district-council/wolverhampton","LOYD WEDNESFIELD WOLVE","100.00","Duke Street Bungalows","6011","Provisions (Not for resale)","21/08/2018"
"Wolverhampton City Council","http://opendatacommunities.org/id/metropolitan-district-council/wolverhampton","LOYD WEDNESFIELD WOLVE","200.00","Duke Street Bungalows","6011","Provisions (Not for resale)","21/08/2018"
"Wolverhampton City Council","http://opendatacommunities.org/id/metropolitan-district-council/wolverhampton","AMZN MKTP UK AMAZON.CO","19.56","EIP Locality 5","5942","Provisions (Not for resale)","21/08/2018"
"Wolverhampton City Council","http://opendatacommunities.org/id/metropolitan-district-council/wolverhampton","WWW.SAFEOPTIONS.CO.UK","82.80","Art Gallery","5999","Fixtures and Fittings - R&M","20/08/2018"
"Wolverhampton City Council","http://opendatacommunities.org/id/metropolitan-district-council/wolverhampton","AMZN MKTP UK AMAZON.CO","1.99","EIP Locality 3","5942","Grant Payments","20/08/2018"
"Wolverhampton City Council","http://opendatacommunities.org/id/metropolitan-district-council/wolverhampton","AMZN MKTP UK AMAZON.CO","3.96","EIP Locality 3","5942","Grant Payments","20/08/2018"
"Wolverhampton City Council","http://opendatacommunities.org/id/metropolitan-district-council/wolverhampton","AMZN MKTP UK AMAZON.CO","5.99","EIP Locality 3","5942","Grant Payments","20/08/2018"
"Wolverhampton City Council","http://opendatacommunities.org/id/metropolitan-district-council/wolverhampton","POST OFFICE COUNTER","7.30","Adoption and Residence Team & Allowances","9402","Comms - Postage","20/08/2018"
"Wolverhampton City Council","http://opendatacommunities.org/id/metropolitan-district-council/wolverhampton","MONA LIFTING LIMITED","335.70","Towers Outdoor Education Centre","5599","Equipment - Purchase","20/08/2018"
"Wolverhampton City Council","http://opendatacommunities.org/id/metropolitan-district-council/wolverhampton","BARCLAYS","250.00","CIN/CP Social Work Unit - Area 6","6011","Financial Assistance In Exceptional Circ","20/08/2018"
"Wolverhampton City Council","http://opendatacommunities.org/id/metropolitan-district-council/wolverhampton","CARVER/WOLVERHAMPTON/L","21.69","Ground Maintenance East","5211","Materials","20/08/2018"
"Wolverhampton City Council","http://opendatacommunities.org/id/metropolitan-district-council/wolverhampton","PAYPAL  WTONBIZFOR","10.00","Communications & Marketing - General","8398","Services - Supplies & Services to users","20/08/2018"
"Wolverhampton City Council","http://opendatacommunities.org/id/metropolitan-district-council/wolverhampton","FIRST 4 FLOORING","208.33","Mental Health Assessment & Care Mgmt","5713","Equipment - Purchase","20/08/2018"
"Wolverhampton City Council","http://opendatacommunities.org/id/metropolitan-district-council/wolverhampton","AMZN MKTP UK AMAZON.CO","2.90","EIP Locality 3","5942","Grant Payments","20/08/2018"
"Wolverhampton City Council","http://opendatacommunities.org/id/metropolitan-district-council/wolverhampton","DUDLEY MBC  INTERN","400.00","Education Business Partnership","8999","Services - Professional Fees","20/08/2018"
"Wolverhampton City Council","http://opendatacommunities.org/id/metropolitan-district-council/wolverhampton","LOOP11.COM","161.31","City Direct","7372","Computing - Purchase of Software","20/08/2018"
"Wolverhampton City Council","http://opendatacommunities.org/id/metropolitan-district-council/wolverhampton","NAMESCO","44.99","Communications & Marketing - General","4816","Computing - Purchase of Software","20/08/2018"
"Wolverhampton City Council","http://opendatacommunities.org/id/metropolitan-district-council/wolverhampton","Amazon.co.uk","18.32","Waste Coll & Recycling Serv General","5969","Equipment - Purchase","20/08/2018"
"Wolverhampton City Council","http://opendatacommunities.org/id/metropolitan-district-council/wolverhampton","AMZN Mktp UK","62.40","Strategic ICTS (ICT Serv Budget)","5942","Computing - Purchase of Hardware","20/08/2018"
"Wolverhampton City Council","http://opendatacommunities.org/id/metropolitan-district-council/wolverhampton","PP 9151CODE","1.00","Strategic ICTS (ICT Serv Budget)","8999","Services - Professional Fees","20/08/2018"
"Wolverhampton City Council","http://opendatacommunities.org/id/metropolitan-district-council/wolverhampton","AMZN Mktp UK","107.67","Strategic ICTS (ICT Serv Budget)","5942","Computing - Purchase of Hardware","20/08/2018"
"Wolverhampton City Council","http://opendatacommunities.org/id/metropolitan-district-council/wolverhampton","CAMPUSLIVINGVILLAG","250.00","LAC Transitions Team","7011","Client Allowances","20/08/2018"
"Wolverhampton City Council","http://opendatacommunities.org/id/metropolitan-district-council/wolverhampton","ASDA GROCERIES ONLINE","44.58","Upper Pendeford Farm Childrens Home","5411","Provisions (Not for resale)","20/08/2018"
"Wolverhampton City Council","http://opendatacommunities.org/id/metropolitan-district-council/wolverhampton","POST OFFICE COUNTER","31.25","Upper Pendeford Farm Childrens Home","9402","Comms - Postage","20/08/2018"
"Wolverhampton City Council","http://opendatacommunities.org/id/metropolitan-district-council/wolverhampton","PAYPAL  ANOVATECHNO","1288.80","Art Gallery","5732","Equipment - Purchase","20/08/2018"
"Wolverhampton City Council","http://opendatacommunities.org/id/metropolitan-district-council/wolverhampton","Amazon.co.uk","17.07","Community Enablement","5969","Stationery","20/08/2018"
"Wolverhampton City Council","http://opendatacommunities.org/id/metropolitan-district-council/wolverhampton","AMZN MKTP UK AMAZON.CO","20.99","Community Enablement","5942","Stationery","20/08/2018"
"Wolverhampton City Council","http://opendatacommunities.org/id/metropolitan-district-council/wolverhampton","Wix.com","93.13","Technical Support","5817","Computing - Purchase of Software","20/08/2018"
"Wolverhampton City Council","http://opendatacommunities.org/id/metropolitan-district-council/wolverhampton","AMZN Mktp UK","8.17","Global Budgets","5942","Computing - Consumables","20/08/2018"
"Wolverhampton City Council","http://opendatacommunities.org/id/metropolitan-district-council/wolverhampton","ASDA GROCERIES ONLINE","69.37","Ernest Bold Court","5411","Provisions (Not for resale)","20/08/2018"
"Wolverhampton City Council","http://opendatacommunities.org/id/metropolitan-district-council/wolverhampton","HERON FOODS LTD","10.00","Ernest Bold Court","5499","Provisions (Not for resale)","20/08/2018"
"Wolverhampton City Council","http://opendatacommunities.org/id/metropolitan-district-council/wolverhampton","Amazon.co.uk","47.99","Inclusion Support","5969","Equipment - Purchase","20/08/2018"
"Wolverhampton City Council","http://opendatacommunities.org/id/metropolitan-district-council/wolverhampton","Central Taxis Limited","43.70","CIN/CP Social Work Unit - Area 5","4121","Section 17","20/08/2018"
"Wolverhampton City Council","http://opendatacommunities.org/id/metropolitan-district-council/wolverhampton","GRO HM PASSPORT OFFICE","-23.40","Head of Service - CINCP","9399","Services - Professional Fees","20/08/2018"
"Wolverhampton City Council","http://opendatacommunities.org/id/metropolitan-district-council/wolverhampton","GRO HM PASSPORT OFFICE","-23.40","Head of Service - CINCP","9399","Services - Professional Fees","20/08/2018"
"Wolverhampton City Council","http://opendatacommunities.org/id/metropolitan-district-council/wolverhampton","LIDL UK  DUDLEY","28.45","Children & Family Contact Services","5411","Provisions (Not for resale)","20/08/2018"
"Wolverhampton City Council","http://opendatacommunities.org/id/metropolitan-district-council/wolverhampton","ALBRIGHTON FEEDS LIMIT","179.07","Culwell Street Depot","5995","Equipment - Purchase","20/08/2018"
"Wolverhampton City Council","http://opendatacommunities.org/id/metropolitan-district-council/wolverhampton","AMZN MKTP UK AMAZON.CO","11.87","EIP Locality 5","5942","Provisions (Not for resale)","20/08/2018"
"Wolverhampton City Council","http://opendatacommunities.org/id/metropolitan-district-council/wolverhampton","ASDA GROCERIES ONLINE","-0.04","Ernest Bold Court","5411","Provisions (Not for resale)","20/08/2018"
"Wolverhampton City Council","http://opendatacommunities.org/id/metropolitan-district-council/wolverhampton","AMZN MKTP UK AMAZON.CO","3.32","EIP Locality 5","5942","Provisions (Not for resale)","20/08/2018"
"Wolverhampton City Council","http://opendatacommunities.org/id/metropolitan-district-council/wolverhampton","AMZN MKTP UK AMAZON.CO","16.20","Planning","5942","Stationery","20/08/2018"
"Wolverhampton City Council","http://opendatacommunities.org/id/metropolitan-district-council/wolverhampton","Amazon.co.uk","10.78","Northicote Farm","5969","Equipment - Purchase","20/08/2018"
"Wolverhampton City Council","http://opendatacommunities.org/id/metropolitan-district-council/wolverhampton","WOLVERHAMPTON CC","3.33","Headstart Phase 3","7523","Parking Fees","17/08/2018"
"Wolverhampton City Council","http://opendatacommunities.org/id/metropolitan-district-council/wolverhampton","B&M RETAIL","99.71","LAC Transitions Team","5310","Client Allowances","17/08/2018"
"Wolverhampton City Council","http://opendatacommunities.org/id/metropolitan-district-council/wolverhampton","ARGOS LTD","133.32","LAC Transitions Team","5310","Client Allowances","17/08/2018"
"Wolverhampton City Council","http://opendatacommunities.org/id/metropolitan-district-council/wolverhampton","ARGOS LTD","119.94","LAC Transitions Team","5310","Client Allowances","17/08/2018"
"Wolverhampton City Council","http://opendatacommunities.org/id/metropolitan-district-council/wolverhampton","AMZN MKTP UK AMAZON.CO","1.66","EIP Locality 3","5942","Grant Payments","17/08/2018"
"Wolverhampton City Council","http://opendatacommunities.org/id/metropolitan-district-council/wolverhampton","AMZN MKTP UK AMAZON.CO","2.07","EIP Locality 3","5942","Grant Payments","17/08/2018"
"Wolverhampton City Council","http://opendatacommunities.org/id/metropolitan-district-council/wolverhampton","Amazon.co.uk","11.23","EIP Locality 2","5969","Equipment - Purchase","17/08/2018"
"Wolverhampton City Council","http://opendatacommunities.org/id/metropolitan-district-council/wolverhampton","NATIONWIDE","100.00","EIP Locality 2","6011","Grant Payments","17/08/2018"
"Wolverhampton City Council","http://opendatacommunities.org/id/metropolitan-district-council/wolverhampton","NATIONWIDE","200.00","EIP Locality 2","6011","Grant Payments","17/08/2018"
"Wolverhampton City Council","http://opendatacommunities.org/id/metropolitan-district-council/wolverhampton","RAMADA PARK HALL HOTEL","107.00","Adoption and Residence Team & Allowances","7011","Accommodation Costs","17/08/2018"
"Wolverhampton City Council","http://opendatacommunities.org/id/metropolitan-district-council/wolverhampton","Virgin Trains","202.00","Fostering Team & Allowances","4112","Public Transport","17/08/2018"
"Wolverhampton City Council","http://opendatacommunities.org/id/metropolitan-district-council/wolverhampton","WWW.ISTOCK.COM","310.00","Communications & Marketing - General","5971","Services - Professional Fees","17/08/2018"
"Wolverhampton City Council","http://opendatacommunities.org/id/metropolitan-district-council/wolverhampton","THE POST OFFICE","14.75","Central Costs","9402","Comms - Postage","17/08/2018"
"Wolverhampton City Council","http://opendatacommunities.org/id/metropolitan-district-council/wolverhampton","WISEPOPS","56.00","City Direct","7372","Computing - Purchase of Software","17/08/2018"
"Wolverhampton City Council","http://opendatacommunities.org/id/metropolitan-district-council/wolverhampton","POUNDSTRETCHER 147","11.96","Admin & Support","5714","Equipment - Purchase","17/08/2018"
"Wolverhampton City Council","http://opendatacommunities.org/id/metropolitan-district-council/wolverhampton","AMZN Mktp UK","8.32","LAC Education Team (LACE)","5942","Books","17/08/2018"
"Wolverhampton City Council","http://opendatacommunities.org/id/metropolitan-district-council/wolverhampton","REGISTRARS OFFICE","40.00","Adoption and Residence Team & Allowances","8299","Services - Fees and Charges","17/08/2018"
"Wolverhampton City Council","http://opendatacommunities.org/id/metropolitan-district-council/wolverhampton","Virgin Trains","184.90","Adoption and Residence Team & Allowances","4112","Public Transport","17/08/2018"
"Wolverhampton City Council","http://opendatacommunities.org/id/metropolitan-district-council/wolverhampton","EASYJET","145.21","Service Director City Environment","3245","Public Transport","17/08/2018"
"Wolverhampton City Council","http://opendatacommunities.org/id/metropolitan-district-council/wolverhampton","ASDA GROCERIES ONLINE","-0.60","Upper Pendeford Farm Childrens Home","5411","Provisions (Not for resale)","17/08/2018"
"Wolverhampton City Council","http://opendatacommunities.org/id/metropolitan-district-council/wolverhampton","ASDA GROCERIES ONLINE","195.37","Upper Pendeford Farm Childrens Home","5411","Provisions (Not for resale)","17/08/2018"
"Wolverhampton City Council","http://opendatacommunities.org/id/metropolitan-district-council/wolverhampton","Amazon.co.uk","24.23","EIP Locality 5","5969","Provisions (Not for resale)","17/08/2018"
"Wolverhampton City Council","http://opendatacommunities.org/id/metropolitan-district-council/wolverhampton","AMZN MKTP UK AMAZON.CO","2.50","EIP Locality 5","5942","Provisions (Not for resale)","17/08/2018"
"Wolverhampton City Council","http://opendatacommunities.org/id/metropolitan-district-council/wolverhampton","AMZN MKTP UK AMAZON.CO","45.82","EIP Locality 5","5942","Books","17/08/2018"
"Wolverhampton City Council","http://opendatacommunities.org/id/metropolitan-district-council/wolverhampton","NCE COMPUTER GROUP","12.50","Strategic ICTS (ICT Serv Budget)","7372","Computing - Purchase of Software","17/08/2018"
"Wolverhampton City Council","http://opendatacommunities.org/id/metropolitan-district-council/wolverhampton","PAYPAL  AXMINSTERTC","12.27","Northicote Farm","5251","Materials","17/08/2018"
"Wolverhampton City Council","http://opendatacommunities.org/id/metropolitan-district-council/wolverhampton","MARTIN MCCOLL","10.00","EIP Locality 1","5499","Grant Payments","17/08/2018"
"Wolverhampton City Council","http://opendatacommunities.org/id/metropolitan-district-council/wolverhampton","CardtronicsUK","41.85","EIP Locality 1","6011","Grant Payments","17/08/2018"
"Wolverhampton City Council","http://opendatacommunities.org/id/metropolitan-district-council/wolverhampton","TESCO STORES 5397","6.19","EIP Locality 1","5411","Grant Payments","17/08/2018"
"Wolverhampton City Council","http://opendatacommunities.org/id/metropolitan-district-council/wolverhampton","AMZN Mktp UK","36.41","EIP Locality 3","5942","Equipment - Purchase","17/08/2018"
"Wolverhampton City Council","http://opendatacommunities.org/id/metropolitan-district-council/wolverhampton","AMZN Mktp UK","16.45","EIP Locality 3","5942","Equipment - Purchase","17/08/2018"
"Wolverhampton City Council","http://opendatacommunities.org/id/metropolitan-district-council/wolverhampton","AMZN Mktp UK","4.84","EIP Locality 3","5942","Equipment - Purchase","17/08/2018"
"Wolverhampton City Council","http://opendatacommunities.org/id/metropolitan-district-council/wolverhampton","AMZN Mktp UK","20.82","EIP Locality 3","5942","Equipment - Purchase","17/08/2018"
"Wolverhampton City Council","http://opendatacommunities.org/id/metropolitan-district-council/wolverhampton","GRO HM PASSPORT OFFICE","46.80","Head of Service - CINCP","9399","Services - Professional Fees","17/08/2018"
"Wolverhampton City Council","http://opendatacommunities.org/id/metropolitan-district-council/wolverhampton","CITY OF WOLVERHAMPTON","7.00","Head of Service - CINCP","9399","Services - Professional Fees","17/08/2018"
"Wolverhampton City Council","http://opendatacommunities.org/id/metropolitan-district-council/wolverhampton","CITY OF WOLVERHAMPTON","20.00","Head of Service - CINCP","9399","Services - Professional Fees","17/08/2018"
"Wolverhampton City Council","http://opendatacommunities.org/id/metropolitan-district-council/wolverhampton","AMZN Mktp UK","16.63","Parks - Ranger Service","5942","Stationery","17/08/2018"
"Wolverhampton City Council","http://opendatacommunities.org/id/metropolitan-district-council/wolverhampton","Amazon.co.uk","40.21","EIP Locality 5","5969","Provisions (Not for resale)","17/08/2018"
"Wolverhampton City Council","http://opendatacommunities.org/id/metropolitan-district-council/wolverhampton","WM MORRISON 024","73.95","EIP Locality 2","5411","Training Expenses","16/08/2018"
"Wolverhampton City Council","http://opendatacommunities.org/id/metropolitan-district-council/wolverhampton","AMZN MKTP UK AMAZON.CO","44.83","EIP Locality 2","5942","Stationery","16/08/2018"
"Wolverhampton City Council","http://opendatacommunities.org/id/metropolitan-district-council/wolverhampton","AMZN MKTP UK AMAZON.CO","6.98","EIP Locality 2","5942","Provisions (Not for resale)","16/08/2018"
"Wolverhampton City Council","http://opendatacommunities.org/id/metropolitan-district-council/wolverhampton","Virgin Trains","134.90","Adoption and Residence Team & Allowances","4112","Public Transport","16/08/2018"
"Wolverhampton City Council","http://opendatacommunities.org/id/metropolitan-district-council/wolverhampton","CO-OP GROUP 070228","5.99","Towers Outdoor Education Centre","5411","Provisions (Not for resale)","16/08/2018"
"Wolverhampton City Council","http://opendatacommunities.org/id/metropolitan-district-council/wolverhampton","O E METCALFE","351.68","Towers Outdoor Education Centre","5499","Provisions (Not for resale)","16/08/2018"
"Wolverhampton City Council","http://opendatacommunities.org/id/metropolitan-district-council/wolverhampton","BETTWS MOTORS LIMITED","12.50","Towers Outdoor Education Centre","7538","Equipment - Purchase","16/08/2018"
"Wolverhampton City Council","http://opendatacommunities.org/id/metropolitan-district-council/wolverhampton","HARLECH FOODSERVICE LT","123.30","Towers Outdoor Education Centre","5422","Provisions (Not for resale)","16/08/2018"
"Wolverhampton City Council","http://opendatacommunities.org/id/metropolitan-district-council/wolverhampton","SPAR SIOP TANDDERWEN","432.52","Towers Outdoor Education Centre","5411","Provisions (Not for resale)","16/08/2018"
"Wolverhampton City Council","http://opendatacommunities.org/id/metropolitan-district-council/wolverhampton","HN NUTTALL LTD","495.39","Towers Outdoor Education Centre","5085","Provisions (Not for resale)","16/08/2018"
"Wolverhampton City Council","http://opendatacommunities.org/id/metropolitan-district-council/wolverhampton","C L JONES HEAD OFFICE","120.59","Towers Outdoor Education Centre","5211","Fixtures and Fittings - Purchases","16/08/2018"
"Wolverhampton City Council","http://opendatacommunities.org/id/metropolitan-district-council/wolverhampton","RYMAN","5.82","Delivery & OCE Development","5943","Stationery","16/08/2018"
"Wolverhampton City Council","http://opendatacommunities.org/id/metropolitan-district-council/wolverhampton","AMZN Mktp UK","40.74","Education And Access","5942","Materials","16/08/2018"
"Wolverhampton City Council","http://opendatacommunities.org/id/metropolitan-district-council/wolverhampton","AMZN Mktp UK","6.98","WV Active Marketing","5942","Books","16/08/2018"
"Wolverhampton City Council","http://opendatacommunities.org/id/metropolitan-district-council/wolverhampton","AMZN MKTP UK AMAZON.CO","71.98","Communications & Marketing - General","5942","Books","16/08/2018"
"Wolverhampton City Council","http://opendatacommunities.org/id/metropolitan-district-council/wolverhampton","AMZN Mktp UK","313.71","Headstart - Young People Engagement","5942","Educ Trips, Holidays, Outings, Activity","16/08/2018"
"Wolverhampton City Council","http://opendatacommunities.org/id/metropolitan-district-council/wolverhampton","LOVE2SHOP.CO.UK","150.00","IMPACT","8641","Client Allowances","16/08/2018"
"Wolverhampton City Council","http://opendatacommunities.org/id/metropolitan-district-council/wolverhampton","LOVE2SHOP.CO.UK","100.00","IMPACT","8641","Client Allowances","16/08/2018"
"Wolverhampton City Council","http://opendatacommunities.org/id/metropolitan-district-council/wolverhampton","WWW.CARESHOP.CO.UK","76.95","Ernest Bold Court","5999","Equipment - Purchase","16/08/2018"
"Wolverhampton City Council","http://opendatacommunities.org/id/metropolitan-district-council/wolverhampton","ARGOS LTD","69.99","LAC Transitions Team","5310","Client Allowances","16/08/2018"
"Wolverhampton City Council","http://opendatacommunities.org/id/metropolitan-district-council/wolverhampton","Trainline","204.00","Business Manager - Place","4112","Public Transport","16/08/2018"
"Wolverhampton City Council","http://opendatacommunities.org/id/metropolitan-district-council/wolverhampton","AMZN Mktp UK","22.80","Corporate Procurement Unit","5942","Books","16/08/2018"
"Wolverhampton City Council","http://opendatacommunities.org/id/metropolitan-district-council/wolverhampton","EXPEDIA 7373592997687","3.00","Service Director City Environment","4722","Public Transport","16/08/2018"
"Wolverhampton City Council","http://opendatacommunities.org/id/metropolitan-district-council/wolverhampton","Trainline","104.00","LAC Transitions Team","4112","Public Transport","16/08/2018"
"Wolverhampton City Council","http://opendatacommunities.org/id/metropolitan-district-council/wolverhampton","POSTURITE (UK) LTD","207.89","Head of Strategic Commissioning � People","5021","Furniture","16/08/2018"
"Wolverhampton City Council","http://opendatacommunities.org/id/metropolitan-district-council/wolverhampton","HM PASSPORT","-254.00","CIN/CP Social Work Unit - Area 7","9399","Services - Fees and Charges","16/08/2018"
"Wolverhampton City Council","http://opendatacommunities.org/id/metropolitan-district-council/wolverhampton","POST OFFICE COUNTER","150.00","Education Catering - General Overheads","9402","Comms - Postage","16/08/2018"
"Wolverhampton City Council","http://opendatacommunities.org/id/metropolitan-district-council/wolverhampton","ASDA SUPERSTORE","33.42","EIP Locality 3","5411","Grant Payments","16/08/2018"
"Wolverhampton City Council","http://opendatacommunities.org/id/metropolitan-district-council/wolverhampton","AMZN Mktp UK","55.72","EIP Locality 3","5942","Stationery","16/08/2018"
"Wolverhampton City Council","http://opendatacommunities.org/id/metropolitan-district-council/wolverhampton","CINEWORLD","16.80","LAC Team","7922","Financial Assistance In Exceptional Circ","16/08/2018"
"Wolverhampton City Council","http://opendatacommunities.org/id/metropolitan-district-council/wolverhampton","BRITANNIA","175.42","CIN/CP Social Work Unit - Area 5","7011","Section 17","16/08/2018"
"Wolverhampton City Council","http://opendatacommunities.org/id/metropolitan-district-council/wolverhampton","Virgin Trains","206.70","MASH","4112","Public Transport","16/08/2018"
"Wolverhampton City Council","http://opendatacommunities.org/id/metropolitan-district-council/wolverhampton","HM PASSPORT OFFICE","54.00","CIN/CP Social Work Unit - Area 8","9399","Section 17","16/08/2018"
"Wolverhampton City Council","http://opendatacommunities.org/id/metropolitan-district-council/wolverhampton","TFM FARM & COUNTRY SUP","156.46","Northicote Farm","5399","Materials","16/08/2018"
"Wolverhampton City Council","http://opendatacommunities.org/id/metropolitan-district-council/wolverhampton","CARVER/WOLVERHAMPTON/L","86.11","Northicote Farm","5211","Materials","16/08/2018"
"Wolverhampton City Council","http://opendatacommunities.org/id/metropolitan-district-council/wolverhampton","B&M RETAIL","97.50","LAC Transitions Team","5310","Equipment - Purchase","15/08/2018"
"Wolverhampton City Council","http://opendatacommunities.org/id/metropolitan-district-council/wolverhampton","RAMADA PARK HALL HOTEL","85.00","Adoption and Residence Team & Allowances","7011","Accommodation Costs","15/08/2018"
"Wolverhampton City Council","http://opendatacommunities.org/id/metropolitan-district-council/wolverhampton","AMZN MKTP UK AMAZON.CO","19.08","Towers Outdoor Education Centre","5942","Fixtures and Fittings - Purchases","15/08/2018"
"Wolverhampton City Council","http://opendatacommunities.org/id/metropolitan-district-council/wolverhampton","AMZN Mktp UK","20.87","Towers Outdoor Education Centre","5942","Fixtures and Fittings - Purchases","15/08/2018"
"Wolverhampton City Council","http://opendatacommunities.org/id/metropolitan-district-council/wolverhampton","BAKER ROSS","51.21","Education And Access","5970","Materials","15/08/2018"
"Wolverhampton City Council","http://opendatacommunities.org/id/metropolitan-district-council/wolverhampton","AMZN Mktp UK","146.63","Education And Access","5942","Materials","15/08/2018"
"Wolverhampton City Council","http://opendatacommunities.org/id/metropolitan-district-council/wolverhampton","RYANAIR","156.74","GEN Y City Transnational","3246","Public Transport","15/08/2018"
"Wolverhampton City Council","http://opendatacommunities.org/id/metropolitan-district-council/wolverhampton","HALFORDS 0775","7.08","Mayoral Expenses","5940","Cleaning Supplies and Materials","15/08/2018"
"Wolverhampton City Council","http://opendatacommunities.org/id/metropolitan-district-council/wolverhampton","ASDA SUPERSTORE","6.25","Mayoral Expenses","5411","Provisions (Not for resale)","15/08/2018"
"Wolverhampton City Council","http://opendatacommunities.org/id/metropolitan-district-council/wolverhampton","Amazon.co.uk","15.68","Admin & Support","5969","Equipment - Purchase","15/08/2018"
"Wolverhampton City Council","http://opendatacommunities.org/id/metropolitan-district-council/wolverhampton","ITUNES.COM/BILL","2.07","LAC Education Team (LACE)","5735","Computing - Purchase of Software","15/08/2018"
"Wolverhampton City Council","http://opendatacommunities.org/id/metropolitan-district-council/wolverhampton","ASDA SUPERSTORE","30.95","EIP Locality 6","5411","Training Expenses","15/08/2018"
"Wolverhampton City Council","http://opendatacommunities.org/id/metropolitan-district-council/wolverhampton","TICKET OFFICE-INTE","60.00","EIP Locality 6","7997","Educ Trips, Holidays, Outings, Activity","15/08/2018"
"Wolverhampton City Council","http://opendatacommunities.org/id/metropolitan-district-council/wolverhampton","ASDA GROCERIES ONLINE","3.00","Upper Pendeford Farm Childrens Home","5411","Provisions (Not for resale)","15/08/2018"
"Wolverhampton City Council","http://opendatacommunities.org/id/metropolitan-district-council/wolverhampton","Virgin Trains","62.40","LAC Team","4112","Client Transport","15/08/2018"
"Wolverhampton City Council","http://opendatacommunities.org/id/metropolitan-district-council/wolverhampton","WOLVERHAMPTON T/O","35.00","Education And Access","4112","Public Transport","15/08/2018"
"Wolverhampton City Council","http://opendatacommunities.org/id/metropolitan-district-council/wolverhampton","WWW.ARGOS.CO.UK","84.94","EIP Locality 1","5310","Equipment - Purchase","15/08/2018"
"Wolverhampton City Council","http://opendatacommunities.org/id/metropolitan-district-council/wolverhampton","DIRECT CARPETS","333.33","EIP Locality 1","5713","Equipment - Purchase","15/08/2018"
"Wolverhampton City Council","http://opendatacommunities.org/id/metropolitan-district-council/wolverhampton","MAYFAIR CARPETS","331.67","EIP Locality 1","5713","Equipment - Purchase","15/08/2018"
"Wolverhampton City Council","http://opendatacommunities.org/id/metropolitan-district-council/wolverhampton","REGISTRARS OFFICE","10.00","CIN/CP Social Work Unit - Area 8","8299","Client Allowances","15/08/2018"
"Wolverhampton City Council","http://opendatacommunities.org/id/metropolitan-district-council/wolverhampton","WWW.GOV.UK","10.00","Revenues","8999","Services - Professional Fees","15/08/2018"
"Wolverhampton City Council","http://opendatacommunities.org/id/metropolitan-district-council/wolverhampton","WWW.GOV.UK","10.00","Revenues","8999","Services - Professional Fees","15/08/2018"
"Wolverhampton City Council","http://opendatacommunities.org/id/metropolitan-district-council/wolverhampton","WWW.GOV.UK","10.00","Revenues","8999","Services - Professional Fees","15/08/2018"
"Wolverhampton City Council","http://opendatacommunities.org/id/metropolitan-district-council/wolverhampton","Amazon.co.uk","41.31","Carers Support","5969","Equipment - Purchase","15/08/2018"
"Wolverhampton City Council","http://opendatacommunities.org/id/metropolitan-district-council/wolverhampton","Amazon.co.uk","19.99","Global Budgets","5969","Books","15/08/2018"
"Wolverhampton City Council","http://opendatacommunities.org/id/metropolitan-district-council/wolverhampton","CardtronicsUK","50.00","EIP Locality 3","6011","Grant Payments","15/08/2018"
"Wolverhampton City Council","http://opendatacommunities.org/id/metropolitan-district-council/wolverhampton","Amazon.co.uk","12.89","EIP Locality 3","5969","Grant Payments","15/08/2018"
"Wolverhampton City Council","http://opendatacommunities.org/id/metropolitan-district-council/wolverhampton","BRITANNIA","42.08","CIN/CP Social Work Unit - Area 5","7011","Section 17","15/08/2018"
"Wolverhampton City Council","http://opendatacommunities.org/id/metropolitan-district-council/wolverhampton","Trainline","193.55","CIN/CP Social Work Unit - Area 5","4112","Section 17","15/08/2018"
"Wolverhampton City Council","http://opendatacommunities.org/id/metropolitan-district-council/wolverhampton","MAYFAIR CARPETS","100.00","LAC Transitions Team","5713","Client Allowances","15/08/2018"
"Wolverhampton City Council","http://opendatacommunities.org/id/metropolitan-district-council/wolverhampton","Amazon.co.uk","63.73","Parking Enforcement","5969","Equipment - Purchase","15/08/2018"
"Wolverhampton City Council","http://opendatacommunities.org/id/metropolitan-district-council/wolverhampton","Amazon.co.uk","14.12","MASH","5969","Equipment - Purchase","15/08/2018"
"Wolverhampton City Council","http://opendatacommunities.org/id/metropolitan-district-council/wolverhampton","Amazon.co.uk","133.32","Fleet Management","5969","Materials","15/08/2018"
"Wolverhampton City Council","http://opendatacommunities.org/id/metropolitan-district-council/wolverhampton","WLY MYTIMEREWARDS.CO.U","-15.00","Revenues","5968","Subscriptions","15/08/2018"
"Wolverhampton City Council","http://opendatacommunities.org/id/metropolitan-district-council/wolverhampton","WLY COMPLETESAVE.CO.UK","-15.00","Revenues","5968","Subscriptions","15/08/2018"
"Wolverhampton City Council","http://opendatacommunities.org/id/metropolitan-district-council/wolverhampton","Trainline","9.75","CIN/CP Social Work Unit - Area 8","4112","Section 17","15/08/2018"
"Wolverhampton City Council","http://opendatacommunities.org/id/metropolitan-district-council/wolverhampton","BLITZ RECYCLING LTD","395.00","Civic Hall Commercial Operations","7394","Equipment - Purchase","14/08/2018"
"Wolverhampton City Council","http://opendatacommunities.org/id/metropolitan-district-council/wolverhampton","B&M RETAIL LTD","54.19","LAC Transitions Team","5310","Client Allowances","14/08/2018"
"Wolverhampton City Council","http://opendatacommunities.org/id/metropolitan-district-council/wolverhampton","WOLVERHAMPTON CC","3.33","Headstart Phase 3","7523","Parking Fees","14/08/2018"
"Wolverhampton City Council","http://opendatacommunities.org/id/metropolitan-district-council/wolverhampton","Trainline","133.50","CIN/CP Social Work Unit - Area 6","4112","Section 17","14/08/2018"
"Wolverhampton City Council","http://opendatacommunities.org/id/metropolitan-district-council/wolverhampton","MONARCH CLEANERS LTD","542.40","Towers Outdoor Education Centre","7216","Laundry Expenses","14/08/2018"
"Wolverhampton City Council","http://opendatacommunities.org/id/metropolitan-district-council/wolverhampton","AMZN MKTP UK AMAZON.CO","23.20","Delivery & OCE Development","5942","Books","14/08/2018"
"Wolverhampton City Council","http://opendatacommunities.org/id/metropolitan-district-council/wolverhampton","WOLVERHAMPTON T/O","122.33","Education And Access","4112","Public Transport","14/08/2018"
"Wolverhampton City Council","http://opendatacommunities.org/id/metropolitan-district-council/wolverhampton","S & B WASTE","171.00","Central Costs","4900","Equipment - Hire","14/08/2018"
"Wolverhampton City Council","http://opendatacommunities.org/id/metropolitan-district-council/wolverhampton","SHEFFIELD CITY CNC","11.00","CIN/CP Social Work Unit - Area 3","9399","Section 17","14/08/2018"
"Wolverhampton City Council","http://opendatacommunities.org/id/metropolitan-district-council/wolverhampton","BRITISH RED CROSS","126.00","LAC Education Team (LACE)","8398","Training Expenses","14/08/2018"
"Wolverhampton City Council","http://opendatacommunities.org/id/metropolitan-district-council/wolverhampton","Trainline","125.50","Public Service Reform","4112","Public Transport","14/08/2018"
"Wolverhampton City Council","http://opendatacommunities.org/id/metropolitan-district-council/wolverhampton","Virgin Trains","71.70","Corporate Procurement Unit","4112","Public Transport","14/08/2018"
"Wolverhampton City Council","http://opendatacommunities.org/id/metropolitan-district-council/wolverhampton","AMZ EASYSMX","-13.99","Upper Pendeford Farm Childrens Home","5999","Equipment - Purchase","14/08/2018"
"Wolverhampton City Council","http://opendatacommunities.org/id/metropolitan-district-council/wolverhampton","Virgin Trains","366.00","LAC Team","4112","Public Transport","14/08/2018"
"Wolverhampton City Council","http://opendatacommunities.org/id/metropolitan-district-council/wolverhampton","ASDA GROCERIES ONLINE","-0.65","Ernest Bold Court","5411","Provisions (Not for resale)","14/08/2018"
"Wolverhampton City Council","http://opendatacommunities.org/id/metropolitan-district-council/wolverhampton","ASDA GROCERIES ONLINE","71.50","Ernest Bold Court","5411","Provisions (Not for resale)","14/08/2018"
"Wolverhampton City Council","http://opendatacommunities.org/id/metropolitan-district-council/wolverhampton","BRITANNIA","31.25","CIN/CP Social Work Unit - Area 5","7011","Section 17","14/08/2018"
"Wolverhampton City Council","http://opendatacommunities.org/id/metropolitan-district-council/wolverhampton","ARGOS LTD","347.47","LAC Transitions Team","5310","Client Allowances","14/08/2018"
"Wolverhampton City Council","http://opendatacommunities.org/id/metropolitan-district-council/wolverhampton","MAYFAIR CARPETS","329.17","LAC Transitions Team","5713","Client Allowances","14/08/2018"
"Wolverhampton City Council","http://opendatacommunities.org/id/metropolitan-district-council/wolverhampton","WWW.ARGOS.CO.UK","25.82","CIN/CP Social Work Unit - Area 4","5310","Section 17","14/08/2018"
"Wolverhampton City Council","http://opendatacommunities.org/id/metropolitan-district-council/wolverhampton","WWW.ARGOS.CO.UK","77.45","CIN/CP Social Work Unit - Area 4","5310","Section 17","14/08/2018"
"Wolverhampton City Council","http://opendatacommunities.org/id/metropolitan-district-council/wolverhampton","LIDDELL ELECTRICAL DIS","42.50","Road Safety","5065","Equipment - R & M","14/08/2018"
"Wolverhampton City Council","http://opendatacommunities.org/id/metropolitan-district-council/wolverhampton","Trainline","9.75","CIN/CP Social Work Unit - Area 8","4112","Section 17","14/08/2018"
"Wolverhampton City Council","http://opendatacommunities.org/id/metropolitan-district-council/wolverhampton","CardtronicsUK","40.00","Ernest Bold Court","6011","Services - Professional Fees","14/08/2018"
"Wolverhampton City Council","http://opendatacommunities.org/id/metropolitan-district-council/wolverhampton","AMZN Mktp UK","101.99","EIP Locality 7","5942","Grant Payments","14/08/2018"
"Wolverhampton City Council","http://opendatacommunities.org/id/metropolitan-district-council/wolverhampton","AMZN Mktp UK","49.99","EIP Locality 7","5942","Grant Payments","14/08/2018"
"Wolverhampton City Council","http://opendatacommunities.org/id/metropolitan-district-council/wolverhampton","AMZN Mktp UK","100.84","EIP Locality 7","5942","Grant Payments","14/08/2018"
"Wolverhampton City Council","http://opendatacommunities.org/id/metropolitan-district-council/wolverhampton","SAINSBURYS 2040","15.82","Duke Street Bungalows","5411","Provisions (Not for resale)","13/08/2018"
"Wolverhampton City Council","http://opendatacommunities.org/id/metropolitan-district-council/wolverhampton","EB  MISSING AND CHILD","295.00","Workforce Development","7399","Training Expenses","13/08/2018"
"Wolverhampton City Council","http://opendatacommunities.org/id/metropolitan-district-council/wolverhampton","IPS DURHAM CONTACT CTR","31.67","LAC Transitions Team","9399","Client Allowances","13/08/2018"
"Wolverhampton City Council","http://opendatacommunities.org/id/metropolitan-district-council/wolverhampton","GRO HM PASSPORT OFFICE","23.12","LAC Transitions Team","9399","Client Allowances","13/08/2018"
"Wolverhampton City Council","http://opendatacommunities.org/id/metropolitan-district-council/wolverhampton","Audible.co.uk","7.99","Upper Pendeford Farm Childrens Home","5968","Subscriptions","13/08/2018"
"Wolverhampton City Council","http://opendatacommunities.org/id/metropolitan-district-council/wolverhampton","AMZN Mktp UK","2.63","Upper Pendeford Farm Childrens Home","5942","Books","13/08/2018"
"Wolverhampton City Council","http://opendatacommunities.org/id/metropolitan-district-council/wolverhampton","AMZN Mktp UK","18.72","Upper Pendeford Farm Childrens Home","5942","Provisions (Not for resale)","13/08/2018"
"Wolverhampton City Council","http://opendatacommunities.org/id/metropolitan-district-council/wolverhampton","AMZN Mktp UK","23.78","Upper Pendeford Farm Childrens Home","5942","Books","13/08/2018"
"Wolverhampton City Council","http://opendatacommunities.org/id/metropolitan-district-council/wolverhampton","Amazon.co.uk","17.98","Archives","5969","Books","13/08/2018"
"Wolverhampton City Council","http://opendatacommunities.org/id/metropolitan-district-council/wolverhampton","Amazon.co.uk","11.15","EIP Locality 1","5969","Equipment - Purchase","13/08/2018"
"Wolverhampton City Council","http://opendatacommunities.org/id/metropolitan-district-council/wolverhampton","AMZN Mktp UK","2.88","Global Budgets","5942","Books","13/08/2018"
"Wolverhampton City Council","http://opendatacommunities.org/id/metropolitan-district-council/wolverhampton","ASDA GROCERIES ONLINE","-0.22","Ernest Bold Court","5411","Provisions (Not for resale)","13/08/2018"
"Wolverhampton City Council","http://opendatacommunities.org/id/metropolitan-district-council/wolverhampton","ASDA GROCERIES ONLINE","52.98","Ernest Bold Court","5411","Provisions (Not for resale)","13/08/2018"
"Wolverhampton City Council","http://opendatacommunities.org/id/metropolitan-district-council/wolverhampton","PRIORY ROOMS BULL","158.00","Head of Service - LAC","7399","Hospitality","13/08/2018"
"Wolverhampton City Council","http://opendatacommunities.org/id/metropolitan-district-council/wolverhampton","Trainline","50.70","CIN/CP Social Work Unit - Area 4","4112","Section 17","13/08/2018"
"Wolverhampton City Council","http://opendatacommunities.org/id/metropolitan-district-council/wolverhampton","SAINSBURYS","200.00","Duke Street Bungalows","6011","Financial Assistance In Exceptional Circ","13/08/2018"
"Wolverhampton City Council","http://opendatacommunities.org/id/metropolitan-district-council/wolverhampton","TESCO DELIVERY SAVER2","3.49","Towers Outdoor Education Centre","5968","Provisions (Not for resale)","13/08/2018"
"Wolverhampton City Council","http://opendatacommunities.org/id/metropolitan-district-council/wolverhampton","WWW.ARGOS.CO.UK","94.12","Fostering Team & Allowances","5310","Equipment - Purchase","13/08/2018"
"Wolverhampton City Council","http://opendatacommunities.org/id/metropolitan-district-council/wolverhampton","ONE4ALL GIFT CARD","100.99","Communications & Marketing - General","5947","Equipment - Purchase","13/08/2018"
"Wolverhampton City Council","http://opendatacommunities.org/id/metropolitan-district-council/wolverhampton","ONE4ALL GIFT CARD","50.99","Communications & Marketing - General","5947","Equipment - Purchase","13/08/2018"
"Wolverhampton City Council","http://opendatacommunities.org/id/metropolitan-district-council/wolverhampton","GOOGLE  ADS3317949200","350.00","Communications & Marketing - General","5968","Subscriptions","13/08/2018"
"Wolverhampton City Council","http://opendatacommunities.org/id/metropolitan-district-council/wolverhampton","AMZN MKTP UK AMAZON.CO","254.59","Admin & Support","5942","Books","13/08/2018"
"Wolverhampton City Council","http://opendatacommunities.org/id/metropolitan-district-council/wolverhampton","RESPONSTER PLUS PLAN","15.37","City Direct","5734","Computing - Purchase of Software","13/08/2018"
"Wolverhampton City Council","http://opendatacommunities.org/id/metropolitan-district-council/wolverhampton","NCP WOLVERHAMPTON CHUR","0.83","Headstart Phase 3","7523","Parking Fees","13/08/2018"
"Wolverhampton City Council","http://opendatacommunities.org/id/metropolitan-district-council/wolverhampton","WWW.OXYGENFREEJUMP","41.67","EIP Locality 4","7997","Educ Trips, Holidays, Outings, Activity","13/08/2018"
"Wolverhampton City Council","http://opendatacommunities.org/id/metropolitan-district-council/wolverhampton","AMZN Mktp UK","65.49","LAC Transitions Team","5942","Client Allowances","13/08/2018"
"Wolverhampton City Council","http://opendatacommunities.org/id/metropolitan-district-council/wolverhampton","TRAVELODGE","93.75","Emergency Duty Team","3615","Services - Supplies & Services to users","13/08/2018"
"Wolverhampton City Council","http://opendatacommunities.org/id/metropolitan-district-council/wolverhampton","WOLVERHAMPTON CC","4.58","Cemeteries","7523","Car Allowances","13/08/2018"
"Wolverhampton City Council","http://opendatacommunities.org/id/metropolitan-district-council/wolverhampton","THEWAYYOUTHZONE.OR","5.00","EIP Locality 6","8699","Educ Trips, Holidays, Outings, Activity","13/08/2018"
"Wolverhampton City Council","http://opendatacommunities.org/id/metropolitan-district-council/wolverhampton","THEWAYYOUTHZONE.OR","5.00","EIP Locality 6","8699","Educ Trips, Holidays, Outings, Activity","13/08/2018"
"Wolverhampton City Council","http://opendatacommunities.org/id/metropolitan-district-council/wolverhampton","HMCOURTS-SERVICE.G","-20.00","LAC Transitions Team","9222","Client Allowances","13/08/2018"
"Wolverhampton City Council","http://opendatacommunities.org/id/metropolitan-district-council/wolverhampton","AMZN MKTP UK AMAZON.CO","92.95","Central Baths","5942","Books","13/08/2018"
"Wolverhampton City Council","http://opendatacommunities.org/id/metropolitan-district-council/wolverhampton","Spotify P06FDD1CD7","9.99","","5815","Computing - Purchase of Software","10/08/2018"
"Wolverhampton City Council","http://opendatacommunities.org/id/metropolitan-district-council/wolverhampton","BUYABATTERY CO UK","44.99","Collections","5065","Equipment - R & M","10/08/2018"
"Wolverhampton City Council","http://opendatacommunities.org/id/metropolitan-district-council/wolverhampton","WWW.RYMAN.CO.UK","6.62","Collections","5943","Equipment - Purchase","10/08/2018"
"Wolverhampton City Council","http://opendatacommunities.org/id/metropolitan-district-council/wolverhampton","WWW.TOOLSTATION.COM","7.77","Technician","5251","Equipment - Purchase","10/08/2018"
"Wolverhampton City Council","http://opendatacommunities.org/id/metropolitan-district-council/wolverhampton","ASDA SUPERSTORE","11.47","CIN/CP Social Work Unit - Area 5","5411","No Recourse to Public Funds","10/08/2018"
"Wolverhampton City Council","http://opendatacommunities.org/id/metropolitan-district-council/wolverhampton","SP   FASHIONNOVA.COM","70.97","LAC Transitions Team","5691","Client Allowances","10/08/2018"
"Wolverhampton City Council","http://opendatacommunities.org/id/metropolitan-district-council/wolverhampton","Amazon.co.uk","30.42","BP Portrait Award","5969","Books","10/08/2018"
"Wolverhampton City Council","http://opendatacommunities.org/id/metropolitan-district-council/wolverhampton","AMZN Mktp UK","11.99","Radical Landscapes","5942","Books","10/08/2018"
"Wolverhampton City Council","http://opendatacommunities.org/id/metropolitan-district-council/wolverhampton","000002200500000","50.00","Safeguarding Admin Resource","6011","Financial Assistance In Exceptional Circ","10/08/2018"
"Wolverhampton City Council","http://opendatacommunities.org/id/metropolitan-district-council/wolverhampton","WWW.ARGOS.CO.UK","281.16","LAC Transitions Team","5310","Client Allowances","10/08/2018"
"Wolverhampton City Council","http://opendatacommunities.org/id/metropolitan-district-council/wolverhampton","ROYAL CARPETS","125.00","LAC Transitions Team","5713","Client Allowances","10/08/2018"
"Wolverhampton City Council","http://opendatacommunities.org/id/metropolitan-district-council/wolverhampton","IKEA LTD","413.33","LAC Transitions Team","5712","Client Allowances","10/08/2018"
"Wolverhampton City Council","http://opendatacommunities.org/id/metropolitan-district-council/wolverhampton","IKEA LTD","134.04","LAC Transitions Team","5712","Client Allowances","10/08/2018"
"Wolverhampton City Council","http://opendatacommunities.org/id/metropolitan-district-council/wolverhampton","VIRGIN MEDIS PYMTS","7.50","Community Enablement","4814","Comms - Telephone Call charges","10/08/2018"
"Wolverhampton City Council","http://opendatacommunities.org/id/metropolitan-district-council/wolverhampton","Amazon.co.uk","13.18","Inclusion Support","5969","Equipment - Purchase","10/08/2018"
"Wolverhampton City Council","http://opendatacommunities.org/id/metropolitan-district-council/wolverhampton","Trainline","9.75","CIN/CP Social Work Unit - Area 8","4112","Section 17","10/08/2018"
"Wolverhampton City Council","http://opendatacommunities.org/id/metropolitan-district-council/wolverhampton","POST OFFICE COUNTER","8.60","Adoption and Residence Team & Allowances","9402","Comms - Postage","10/08/2018"
"Wolverhampton City Council","http://opendatacommunities.org/id/metropolitan-district-council/wolverhampton","000002200500000","250.00","CIN/CP Social Work Unit - Area 6","6011","Financial Assistance In Exceptional Circ","10/08/2018"
"Wolverhampton City Council","http://opendatacommunities.org/id/metropolitan-district-council/wolverhampton","SAINSBURYS PFS (1340)","1.67","Mayoral Expenses","5541","Vehicle Maintenance - Repairs","10/08/2018"
"Wolverhampton City Council","http://opendatacommunities.org/id/metropolitan-district-council/wolverhampton","SAINSBURYS SACAT (2340","1.50","Mayoral Expenses","5411","Hospitality","10/08/2018"
"Wolverhampton City Council","http://opendatacommunities.org/id/metropolitan-district-council/wolverhampton","Amazon.co.uk","33.97","Admin & Support","5969","Equipment - Purchase","10/08/2018"
"Wolverhampton City Council","http://opendatacommunities.org/id/metropolitan-district-council/wolverhampton","Oticon Limited","146.67","City Direct","5975","Equipment - Purchase","10/08/2018"
"Wolverhampton City Council","http://opendatacommunities.org/id/metropolitan-district-council/wolverhampton","AMZN Mktp UK","29.12","Strategic ICTS (ICT Serv Budget)","5942","Computing - Consumables","10/08/2018"
"Wolverhampton City Council","http://opendatacommunities.org/id/metropolitan-district-council/wolverhampton","ONFULFILLMENT","100.39","Strategic ICTS (ICT Serv Budget)","2741","Books","10/08/2018"
"Wolverhampton City Council","http://opendatacommunities.org/id/metropolitan-district-council/wolverhampton","ONFULFILLMENT","100.39","Strategic ICTS (ICT Serv Budget)","2741","Books","10/08/2018"
"Wolverhampton City Council","http://opendatacommunities.org/id/metropolitan-district-council/wolverhampton","Amazon Prime","6.66","Strategic ICTS (ICT Serv Budget)","5968","Subscriptions","10/08/2018"
"Wolverhampton City Council","http://opendatacommunities.org/id/metropolitan-district-council/wolverhampton","HMCOURTS-SERVICE.G","20.00","LAC Transitions Team","9222","Client Allowances","10/08/2018"
"Wolverhampton City Council","http://opendatacommunities.org/id/metropolitan-district-council/wolverhampton","ASDA SUPERSTORE","94.60","Upper Pendeford Farm Childrens Home","5411","Provisions (Not for resale)","10/08/2018"
"Wolverhampton City Council","http://opendatacommunities.org/id/metropolitan-district-council/wolverhampton","AMZN Mktp UK","16.88","Upper Pendeford Farm Childrens Home","5942","Books","10/08/2018"
"Wolverhampton City Council","http://opendatacommunities.org/id/metropolitan-district-council/wolverhampton","AMZN Mktp UK","26.15","Upper Pendeford Farm Childrens Home","5942","Books","10/08/2018"
"Wolverhampton City Council","http://opendatacommunities.org/id/metropolitan-district-council/wolverhampton","ASDA GROCERIES ONLINE","5.00","Upper Pendeford Farm Childrens Home","5411","Provisions (Not for resale)","10/08/2018"
"Wolverhampton City Council","http://opendatacommunities.org/id/metropolitan-district-council/wolverhampton","POST OFFICE COUNTER","100.00","Wholly Owned Company - Operations","9402","Comms - Postage","10/08/2018"
"Wolverhampton City Council","http://opendatacommunities.org/id/metropolitan-district-council/wolverhampton","TESCO STORES 5397","3.30","EIP Locality 1","5411","Cleaning Supplies and Materials","10/08/2018"
"Wolverhampton City Council","http://opendatacommunities.org/id/metropolitan-district-council/wolverhampton","WEST MID TRAVEL","446.90","Community Enablement","4131","Public Transport","10/08/2018"
"Wolverhampton City Council","http://opendatacommunities.org/id/metropolitan-district-council/wolverhampton","ASDA GROCERIES ONLINE","-1.19","Duke Street Bungalows","5411","Provisions (Not for resale)","10/08/2018"
"Wolverhampton City Council","http://opendatacommunities.org/id/metropolitan-district-council/wolverhampton","ASDA GROCERIES ONLINE","142.10","Duke Street Bungalows","5411","Provisions (Not for resale)","10/08/2018"
"Wolverhampton City Council","http://opendatacommunities.org/id/metropolitan-district-council/wolverhampton","B & Q 1243","0.97","Ernest Bold Court","5211","Equipment - R & M","10/08/2018"
"Wolverhampton City Council","http://opendatacommunities.org/id/metropolitan-district-council/wolverhampton","BLITZ RECYCLING LTD","395.00","Civic Hall Commercial Operations","7394","Equipment - Hire","10/08/2018"
"Wolverhampton City Council","http://opendatacommunities.org/id/metropolitan-district-council/wolverhampton","BRITANNIA","123.75","CIN/CP Social Work Unit - Area 5","7011","Section 17","10/08/2018"
"Wolverhampton City Council","http://opendatacommunities.org/id/metropolitan-district-council/wolverhampton","IKEA LTD","287.50","LAC Transitions Team","5712","Client Allowances","10/08/2018"
"Wolverhampton City Council","http://opendatacommunities.org/id/metropolitan-district-council/wolverhampton","BEATSABAR MUSIC PROJEC","150.00","Youth Offending Team","5733","Equipment - Purchase","09/08/2018"
"Wolverhampton City Council","http://opendatacommunities.org/id/metropolitan-district-council/wolverhampton","BEATSABAR MUSIC PROJEC","103.28","Youth Offending Team","5733","Equipment - Purchase","09/08/2018"
"Wolverhampton City Council","http://opendatacommunities.org/id/metropolitan-district-council/wolverhampton","LOYD 37 CHURCH STREET","100.00","EIP Locality 8","6011","Grant Payments","09/08/2018"
"Wolverhampton City Council","http://opendatacommunities.org/id/metropolitan-district-council/wolverhampton","000002200500000","100.00","Childrens with Disabilities Team","6011","No Recourse to Public Funds","09/08/2018"
"Wolverhampton City Council","http://opendatacommunities.org/id/metropolitan-district-council/wolverhampton","000002200500000","240.00","Childrens with Disabilities Team","6011","No Recourse to Public Funds","09/08/2018"
"Wolverhampton City Council","http://opendatacommunities.org/id/metropolitan-district-council/wolverhampton","CIM","280.00","Communications & Marketing - General","7392","Services - Consultants","09/08/2018"
"Wolverhampton City Council","http://opendatacommunities.org/id/metropolitan-district-council/wolverhampton","ASDA SUPERSTORE","46.19","EIP Locality 6","5411","Grant Payments","09/08/2018"
"Wolverhampton City Council","http://opendatacommunities.org/id/metropolitan-district-council/wolverhampton","TICKET OFFICE-INTE","40.00","EIP Locality 6","7997","Educ Trips, Holidays, Outings, Activity","09/08/2018"
"Wolverhampton City Council","http://opendatacommunities.org/id/metropolitan-district-council/wolverhampton","AMZN MKTP UK AMAZON.CO","74.44","Corporate Procurement Unit","5942","Equipment - R & M","09/08/2018"
"Wolverhampton City Council","http://opendatacommunities.org/id/metropolitan-district-council/wolverhampton","CURRYS S/S","11.97","Intensive Family Support Team","5732","Equipment - Purchase","09/08/2018"
"Wolverhampton City Council","http://opendatacommunities.org/id/metropolitan-district-council/wolverhampton","Amazon Prime","6.66","Upper Pendeford Farm Childrens Home","5968","Subscriptions","09/08/2018"
"Wolverhampton City Council","http://opendatacommunities.org/id/metropolitan-district-council/wolverhampton","AMZN Mktp UK","10.40","Connexions Contract","5942","Stationery","09/08/2018"
"Wolverhampton City Council","http://opendatacommunities.org/id/metropolitan-district-council/wolverhampton","JAMES LISTER & SONS LT","28.76","Culwell Street Depot","5085","R&M - Departmental planned (external)","09/08/2018"
"Wolverhampton City Council","http://opendatacommunities.org/id/metropolitan-district-council/wolverhampton","THE LITTLE CARPET SHOP","190.00","EIP Locality 1","5713","Grant Payments","09/08/2018"
"Wolverhampton City Council","http://opendatacommunities.org/id/metropolitan-district-council/wolverhampton","B & Q 1243","18.33","Duke Street Bungalows","5211","Equipment - R & M","09/08/2018"
"Wolverhampton City Council","http://opendatacommunities.org/id/metropolitan-district-council/wolverhampton","BT PAY BY PHONE","64.82","Ernest Bold Court","4814","Comms - Telephone Call charges","09/08/2018"
"Wolverhampton City Council","http://opendatacommunities.org/id/metropolitan-district-council/wolverhampton","WWW.NISBETS.COM","124.98","Civic Centre Catering","5964","Equipment - Purchase","09/08/2018"
"Wolverhampton City Council","http://opendatacommunities.org/id/metropolitan-district-council/wolverhampton","BRITANNIA","79.00","MASH","7011","Services - Supplies & Services to users","09/08/2018"
"Wolverhampton City Council","http://opendatacommunities.org/id/metropolitan-district-council/wolverhampton","WP-CENTRAL TAXIS L","24.18","CIN/CP Social Work Unit - Area 8","4121","Section 17","09/08/2018"
"Wolverhampton City Council","http://opendatacommunities.org/id/metropolitan-district-council/wolverhampton","AMZN Mktp UK","9.20","EIP Locality 7","5942","Equipment - Purchase","09/08/2018"
"Wolverhampton City Council","http://opendatacommunities.org/id/metropolitan-district-council/wolverhampton","INT IN  S & D CONSULTI","480.49","Mayor's Charity","5999","Equipment - Purchase","09/08/2018"
"Wolverhampton City Council","http://opendatacommunities.org/id/metropolitan-district-council/wolverhampton","AMZN Mktp UK","10.48","Bert Williams Leisure Centre","5942","Books","08/08/2018"
"Wolverhampton City Council","http://opendatacommunities.org/id/metropolitan-district-council/wolverhampton","ARGOS WOLVERHAMPTO","12.99","Admin & Support","5310","Equipment - Purchase","08/08/2018"
"Wolverhampton City Council","http://opendatacommunities.org/id/metropolitan-district-council/wolverhampton","Wix.com","93.13","Technical Support","5817","Computing - Purchase of Software","08/08/2018"
"Wolverhampton City Council","http://opendatacommunities.org/id/metropolitan-district-council/wolverhampton","COVENTRY CITY COUNCIL","21.50","CIN/CP Social Work Unit - Area 3","7999","Section 17","08/08/2018"
"Wolverhampton City Council","http://opendatacommunities.org/id/metropolitan-district-council/wolverhampton","WWW.OXYGENFREEJUMP","19.00","EIP Locality 8","7997","Educ Trips, Holidays, Outings, Activity","08/08/2018"
"Wolverhampton City Council","http://opendatacommunities.org/id/metropolitan-district-council/wolverhampton","B&M RETAIL","32.06","LAC Transitions Team","5310","Client Allowances","08/08/2018"
"Wolverhampton City Council","http://opendatacommunities.org/id/metropolitan-district-council/wolverhampton","WWW.ARGOS.CO.UK","193.53","LAC Transitions Team","5310","Client Allowances","08/08/2018"
"Wolverhampton City Council","http://opendatacommunities.org/id/metropolitan-district-council/wolverhampton","WWW.ARGOS.CO.UK","178.32","LAC Transitions Team","5310","Client Allowances","08/08/2018"
"Wolverhampton City Council","http://opendatacommunities.org/id/metropolitan-district-council/wolverhampton","AMZN Mktp UK","26.45","Admin & Support","5942","Books","08/08/2018"
"Wolverhampton City Council","http://opendatacommunities.org/id/metropolitan-district-council/wolverhampton","PAYPAL  908 LTD","76.25","Cemeteries","8931","Services - Professional Fees","08/08/2018"
"Wolverhampton City Council","http://opendatacommunities.org/id/metropolitan-district-council/wolverhampton","ASDA SUPERSTORE","17.34","EIP Locality 5","5411","Training Expenses","08/08/2018"
"Wolverhampton City Council","http://opendatacommunities.org/id/metropolitan-district-council/wolverhampton","AMZN Mktp UK","10.82","Strategic ICTS (ICT Serv Budget)","5942","Computing - Consumables","08/08/2018"
"Wolverhampton City Council","http://opendatacommunities.org/id/metropolitan-district-council/wolverhampton","POUNDSTRETCHER 703","33.32","LAC Transitions Team","5714","Client Allowances","08/08/2018"
"Wolverhampton City Council","http://opendatacommunities.org/id/metropolitan-district-council/wolverhampton","WWW.SANDWELL.GOV.UK","32.00","CIN/CP Social Work Unit - Area 7","9399","Section 17","08/08/2018"
"Wolverhampton City Council","http://opendatacommunities.org/id/metropolitan-district-council/wolverhampton","CITY DIRECT","30.00","CIN/CP Social Work Unit - Area 7","8299","Section 17","08/08/2018"
"Wolverhampton City Council","http://opendatacommunities.org/id/metropolitan-district-council/wolverhampton","CARVER/WOLVERHAMPTON/L","16.37","Culwell Street Depot","5211","Protective Clothing","08/08/2018"
"Wolverhampton City Council","http://opendatacommunities.org/id/metropolitan-district-council/wolverhampton","WWW.ARGOS.CO.UK","166.94","EIP Locality 1","5310","Grant Payments","08/08/2018"
"Wolverhampton City Council","http://opendatacommunities.org/id/metropolitan-district-council/wolverhampton","OXYGEN FREEJUMPING","67.50","EIP Locality 1","7997","Grant Payments","08/08/2018"
"Wolverhampton City Council","http://opendatacommunities.org/id/metropolitan-district-council/wolverhampton","AMZN Mktp UK","157.35","Children & Family Contact Services","5942","Equipment - Purchase","08/08/2018"
"Wolverhampton City Council","http://opendatacommunities.org/id/metropolitan-district-council/wolverhampton","AMZN Mktp UK","31.99","Children & Family Contact Services","5942","Equipment - Purchase","08/08/2018"
"Wolverhampton City Council","http://opendatacommunities.org/id/metropolitan-district-council/wolverhampton","PAYPAL  A MELVIN","67.80","Education And Access","5641","Equipment - Purchase","08/08/2018"
"Wolverhampton City Council","http://opendatacommunities.org/id/metropolitan-district-council/wolverhampton","AMZN Mktp UK","12.46","Children & Family Contact Services","5942","Equipment - Purchase","08/08/2018"
"Wolverhampton City Council","http://opendatacommunities.org/id/metropolitan-district-council/wolverhampton","AMZN Mktp UK","148.40","Children & Family Contact Services","5942","Equipment - Purchase","08/08/2018"
"Wolverhampton City Council","http://opendatacommunities.org/id/metropolitan-district-council/wolverhampton","BRITANNIA","34.00","MASH","7011","Services - Supplies & Services to users","08/08/2018"
"Wolverhampton City Council","http://opendatacommunities.org/id/metropolitan-district-council/wolverhampton","Amazon.co.uk","18.45","Fleet Management","5969","Equipment - Purchase","08/08/2018"
"Wolverhampton City Council","http://opendatacommunities.org/id/metropolitan-district-council/wolverhampton","GRO HM PASSPORT OFFICE","23.40","CIN/CP Social Work Unit - Area 8","9399","Section 17","08/08/2018"
"Wolverhampton City Council","http://opendatacommunities.org/id/metropolitan-district-council/wolverhampton","Virgin Trains","364.00","Delivery & OCE Development","4112","Public Transport","08/08/2018"
"Wolverhampton City Council","http://opendatacommunities.org/id/metropolitan-district-council/wolverhampton","OXYGEN FREEJUMPING","37.50","EIP Locality 2","7997","Educ Trips, Holidays, Outings, Activity","08/08/2018"
"Wolverhampton City Council","http://opendatacommunities.org/id/metropolitan-district-council/wolverhampton","B & Q 1112","105.00","Towers Outdoor Education Centre","5211","Fixtures and Fittings - Purchases","08/08/2018"
"Wolverhampton City Council","http://opendatacommunities.org/id/metropolitan-district-council/wolverhampton","EB  STALKING AND HARAS","111.81","EIP Locality 2","7399","Training Expenses","08/08/2018"
"Wolverhampton City Council","http://opendatacommunities.org/id/metropolitan-district-council/wolverhampton","NO 5 CHAMBERS LTD","185.00","Central Training","8111","Training Expenses","07/08/2018"
"Wolverhampton City Council","http://opendatacommunities.org/id/metropolitan-district-council/wolverhampton","ASDA GROCERIES ONLINE","78.11","Ernest Bold Court","5411","Provisions (Not for resale)","07/08/2018"
"Wolverhampton City Council","http://opendatacommunities.org/id/metropolitan-district-council/wolverhampton","Trainline","9.75","CIN/CP Social Work Unit - Area 8","4112","Section 17","07/08/2018"
"Wolverhampton City Council","http://opendatacommunities.org/id/metropolitan-district-council/wolverhampton","AMZN MKTP UK AMAZON.CO","53.57","Wolverhampton Indoor and Open Market","5942","Equipment - Purchase","07/08/2018"
"Wolverhampton City Council","http://opendatacommunities.org/id/metropolitan-district-council/wolverhampton","BOOTS - 6564","6.99","EIP Locality 1","5912","Grant Payments","07/08/2018"
"Wolverhampton City Council","http://opendatacommunities.org/id/metropolitan-district-council/wolverhampton","OXYGEN FREEJUMPING","45.00","EIP Locality 1","7997","Grant Payments","07/08/2018"
"Wolverhampton City Council","http://opendatacommunities.org/id/metropolitan-district-council/wolverhampton","LIDDELL ELECTRICAL DIS","20.40","Transportation General","5065","Equipment - R & M","07/08/2018"
"Wolverhampton City Council","http://opendatacommunities.org/id/metropolitan-district-council/wolverhampton","BAKER ROSS LTD","195.92","Education And Access","5970","Materials","07/08/2018"
"Wolverhampton City Council","http://opendatacommunities.org/id/metropolitan-district-council/wolverhampton","Trainline","-243.90","LAC Transitions Team","4112","Public Transport","07/08/2018"
"Wolverhampton City Council","http://opendatacommunities.org/id/metropolitan-district-council/wolverhampton","TVLICENSING.CO.UK","150.50","Central Baths","7392","Services - General Licences","07/08/2018"
"Wolverhampton City Council","http://opendatacommunities.org/id/metropolitan-district-council/wolverhampton","Virgin Trains","215.40","LAC Team","4112","Client Transport","07/08/2018"
"Wolverhampton City Council","http://opendatacommunities.org/id/metropolitan-district-council/wolverhampton","SAINSBURYS (2340)","12.08","Education And Access","5411","Provisions (Not for resale)","07/08/2018"
"Wolverhampton City Council","http://opendatacommunities.org/id/metropolitan-district-council/wolverhampton","Trainline","90.30","CIN/CP Social Work Unit - Area 7","4112","Section 17","07/08/2018"
"Wolverhampton City Council","http://opendatacommunities.org/id/metropolitan-district-council/wolverhampton","HM PASSPORT","127.00","CIN/CP Social Work Unit - Area 7","9399","Section 17","07/08/2018"
"Wolverhampton City Council","http://opendatacommunities.org/id/metropolitan-district-council/wolverhampton","JOHNSTONES DEC CENTRE","59.98","Culwell Street Depot","5231","R&M - Departmental planned (external)","07/08/2018"
"Wolverhampton City Council","http://opendatacommunities.org/id/metropolitan-district-council/wolverhampton","HOME BARGAINS","13.78","EIP Locality 1","5251","Grant Payments","07/08/2018"
"Wolverhampton City Council","http://opendatacommunities.org/id/metropolitan-district-council/wolverhampton","ASDA GROCERIES ONLINE","-0.30","Ernest Bold Court","5411","Provisions (Not for resale)","07/08/2018"
"Wolverhampton City Council","http://opendatacommunities.org/id/metropolitan-district-council/wolverhampton","Trainline","42.50","School Improvement","4112","Public Transport","07/08/2018"
"Wolverhampton City Council","http://opendatacommunities.org/id/metropolitan-district-council/wolverhampton","WOLVERHAMPTON CC","3.33","Headstart Phase 3","7523","Parking Fees","07/08/2018"
"Wolverhampton City Council","http://opendatacommunities.org/id/metropolitan-district-council/wolverhampton","WWW.ARGOS.CO.UK","36.62","LAC Transitions Team","5310","Client Allowances","07/08/2018"
"Wolverhampton City Council","http://opendatacommunities.org/id/metropolitan-district-council/wolverhampton","ARGOS RETAIL GROUP","61.25","LAC Transitions Team","5310","Client Allowances","07/08/2018"
"Wolverhampton City Council","http://opendatacommunities.org/id/metropolitan-district-council/wolverhampton","POST OFFICE COUNTER","7.30","Adoption and Residence Team & Allowances","9402","Comms - Postage","07/08/2018"
"Wolverhampton City Council","http://opendatacommunities.org/id/metropolitan-district-council/wolverhampton","NAMESCO","34.99","City Direct","4816","Computing - Purchase of Software","07/08/2018"
"Wolverhampton City Council","http://opendatacommunities.org/id/metropolitan-district-council/wolverhampton","THE RANGE","43.30","Cemeteries","5311","Equipment - Purchase","07/08/2018"
"Wolverhampton City Council","http://opendatacommunities.org/id/metropolitan-district-council/wolverhampton","Trainline","74.90","SWP - Infrastructure","4112","Public Transport","07/08/2018"
"Wolverhampton City Council","http://opendatacommunities.org/id/metropolitan-district-council/wolverhampton","WOLVERHAMPTON CC","6.50","Towers Outdoor Education Centre","7523","Equipment - Purchase","07/08/2018"
"Wolverhampton City Council","http://opendatacommunities.org/id/metropolitan-district-council/wolverhampton","ARGOS LTD","300.01","EIP Locality 4","5310","Equipment - Purchase","07/08/2018"
"Wolverhampton City Council","http://opendatacommunities.org/id/metropolitan-district-council/wolverhampton","WM MORRISONS","8.50","Headstart Phase 3","5411","Provisions (Not for resale)","07/08/2018"
"Wolverhampton City Council","http://opendatacommunities.org/id/metropolitan-district-council/wolverhampton","MAJESTIC WINE","48.60","Civic Centre Catering","5921","Equipment - Purchase","06/08/2018"
"Wolverhampton City Council","http://opendatacommunities.org/id/metropolitan-district-council/wolverhampton","AMZN Mktp UK","27.80","Children & Family Contact Services","5942","Equipment - Purchase","06/08/2018"
"Wolverhampton City Council","http://opendatacommunities.org/id/metropolitan-district-council/wolverhampton","THE RANGE BAR","15.00","Ernest Bold Court","7922","Services - Supplies & Services to users","06/08/2018"
"Wolverhampton City Council","http://opendatacommunities.org/id/metropolitan-district-council/wolverhampton","WHITES MATERIAL HANDLI","2832.00","Fleet Management","8911","Equipment - Purchase","06/08/2018"
"Wolverhampton City Council","http://opendatacommunities.org/id/metropolitan-district-council/wolverhampton","HOME BARGAINS","6.89","Parks - Ranger Service","5251","Equipment - Purchase","06/08/2018"
"Wolverhampton City Council","http://opendatacommunities.org/id/metropolitan-district-council/wolverhampton","CARVER/WOLVERHAMPTON/L","78.53","Direct Schools","5211","Materials","06/08/2018"
"Wolverhampton City Council","http://opendatacommunities.org/id/metropolitan-district-council/wolverhampton","ARGOS LTD","39.99","Parks - Ranger Service","5310","Equipment - Purchase","06/08/2018"
"Wolverhampton City Council","http://opendatacommunities.org/id/metropolitan-district-council/wolverhampton","AMZN MKTP UK AMAZON.CO","143.58","EIP Locality 7","5942","Grant Payments","06/08/2018"
"Wolverhampton City Council","http://opendatacommunities.org/id/metropolitan-district-council/wolverhampton","APPLE ONLINE STORE GBP","265.83","Strategic ICTS (ICT Serv Budget)","5732","Equipment - Purchase","06/08/2018"
"Wolverhampton City Council","http://opendatacommunities.org/id/metropolitan-district-council/wolverhampton","NCE COMPUTER GROUP","145.00","Strategic ICTS (ICT Serv Budget)","7372","Computing - Purchase of Software","06/08/2018"
"Wolverhampton City Council","http://opendatacommunities.org/id/metropolitan-district-council/wolverhampton","AMZN Mktp UK","14.60","Licensing - General","5942","Equipment - Purchase","06/08/2018"
"Wolverhampton City Council","http://opendatacommunities.org/id/metropolitan-district-council/wolverhampton","AMZN MKTP UK AMAZON.CO","11.25","Global Budgets","5942","Stationery","06/08/2018"
"Wolverhampton City Council","http://opendatacommunities.org/id/metropolitan-district-council/wolverhampton","AMZN MKTP UK AMAZON.CO","9.44","Global Budgets","5942","Books","06/08/2018"
"Wolverhampton City Council","http://opendatacommunities.org/id/metropolitan-district-council/wolverhampton","CardtronicsUK","20.00","EIP Locality 4","6011","Grant Payments","06/08/2018"
"Wolverhampton City Council","http://opendatacommunities.org/id/metropolitan-district-council/wolverhampton","REGISTRARS OFFICE","11.00","EIP Locality 3","8299","Grant Payments","06/08/2018"
"Wolverhampton City Council","http://opendatacommunities.org/id/metropolitan-district-council/wolverhampton","Amazon Prime","6.66","Education And Access","5968","Subscriptions","06/08/2018"
"Wolverhampton City Council","http://opendatacommunities.org/id/metropolitan-district-council/wolverhampton","ASDA GROCERIES ONLINE","-0.02","Ernest Bold Court","5411","Provisions (Not for resale)","06/08/2018"
"Wolverhampton City Council","http://opendatacommunities.org/id/metropolitan-district-council/wolverhampton","ASDA GROCERIES ONLINE","84.04","Ernest Bold Court","5411","Provisions (Not for resale)","06/08/2018"
"Wolverhampton City Council","http://opendatacommunities.org/id/metropolitan-district-council/wolverhampton","AMZN MKTP UK AMAZON.CO","11.48","Waste Coll & Recycling Serv General","5942","Equipment - Purchase","06/08/2018"
"Wolverhampton City Council","http://opendatacommunities.org/id/metropolitan-district-council/wolverhampton","CT WOLVERHAMPTON","6.25","LAC Transitions Team","8398","Independant Living Allowance","06/08/2018"
"Wolverhampton City Council","http://opendatacommunities.org/id/metropolitan-district-council/wolverhampton","LOYD 37 CHURCH STREET","100.00","EIP Locality 8","6011","Grant Payments","06/08/2018"
"Wolverhampton City Council","http://opendatacommunities.org/id/metropolitan-district-council/wolverhampton","TESCO STORES 5194","2.88","Towers Outdoor Education Centre","5411","Provisions (Not for resale)","06/08/2018"
"Wolverhampton City Council","http://opendatacommunities.org/id/metropolitan-district-council/wolverhampton","000002200500000","240.00","CIN/CP Social Work Unit - Area 6","6011","Financial Assistance In Exceptional Circ","06/08/2018"
"Wolverhampton City Council","http://opendatacommunities.org/id/metropolitan-district-council/wolverhampton","AMZN Mktp UK","20.24","Communications & Marketing - General","5942","Books","06/08/2018"
"Wolverhampton City Council","http://opendatacommunities.org/id/metropolitan-district-council/wolverhampton","PAYPAL  GRADKOINTER","17.50","Environmental Health - Pub Prot - Gen","5047","Equipment - Purchase","06/08/2018"
"Wolverhampton City Council","http://opendatacommunities.org/id/metropolitan-district-council/wolverhampton","Central Taxis Limited","27.30","CIN/CP Social Work Unit - Area 5","4121","Section 17","06/08/2018"
"Wolverhampton City Council","http://opendatacommunities.org/id/metropolitan-district-council/wolverhampton","AMZN MKTP UK AMAZON.CO","5.99","Waste Coll & Recycling Serv General","5942","Equipment - Purchase","06/08/2018"
"Wolverhampton City Council","http://opendatacommunities.org/id/metropolitan-district-council/wolverhampton","PAYPAL  EVENTSINDUS","25.00","Environmental Health - Pub Prot - Gen","8999","Equipment - Purchase","06/08/2018"
"Wolverhampton City Council","http://opendatacommunities.org/id/metropolitan-district-council/wolverhampton","AMZN Mktp UK","7.96","Communications & Marketing - General","5942","Books","06/08/2018"
"Wolverhampton City Council","http://opendatacommunities.org/id/metropolitan-district-council/wolverhampton","PRODUCT SUPPORT AG","6.66","Headstart - Young People Engagement","5968","Computing - Maint Agreements","06/08/2018"
"Wolverhampton City Council","http://opendatacommunities.org/id/metropolitan-district-council/wolverhampton","PRODUCT SUPPORT AG","6.66","Headstart - Young People Engagement","5968","Computing - Maint Agreements","06/08/2018"
"Wolverhampton City Council","http://opendatacommunities.org/id/metropolitan-district-council/wolverhampton","WWW.WMCA.CO.UK","56.50","IMPACT","9399","Client Transport","06/08/2018"
"Wolverhampton City Council","http://opendatacommunities.org/id/metropolitan-district-council/wolverhampton","HOTJAR","81.72","City Direct","5045","Computing - Purchase of Hardware","06/08/2018"
"Wolverhampton City Council","http://opendatacommunities.org/id/metropolitan-district-council/wolverhampton","HOLIDAY INNS","87.00","SWP - Infrastructure","3501","Accommodation Costs","06/08/2018"
"Wolverhampton City Council","http://opendatacommunities.org/id/metropolitan-district-council/wolverhampton","Amazon.co.uk","25.75","SWP - Infrastructure","5969","Equipment - Purchase","06/08/2018"
"Wolverhampton City Council","http://opendatacommunities.org/id/metropolitan-district-council/wolverhampton","Central Taxis Limited","29.10","CIN/CP Social Work Unit - Area 5","4121","Section 17","06/08/2018"
"Wolverhampton City Council","http://opendatacommunities.org/id/metropolitan-district-council/wolverhampton","MIDLAND BOX OFFICE","5.00","CIN/CP Social Work Unit - Area 5","7922","Section 17","06/08/2018"
"Wolverhampton City Council","http://opendatacommunities.org/id/metropolitan-district-council/wolverhampton","WWW.ROMPALIMITED.COM","209.39","Blakenhall Resource Centre","5999","Equipment - Purchase","06/08/2018"
"Wolverhampton City Council","http://opendatacommunities.org/id/metropolitan-district-council/wolverhampton","MAJESTIC WINE","153.20","Civic Centre Catering","5921","Equipment - Purchase","06/08/2018"
"Wolverhampton City Council","http://opendatacommunities.org/id/metropolitan-district-council/wolverhampton","MAJESTIC WINE","250.00","Civic Centre Catering","5921","Equipment - Purchase","06/08/2018"
"Wolverhampton City Council","http://opendatacommunities.org/id/metropolitan-district-council/wolverhampton","MAJESTIC WINE","250.00","Civic Centre Catering","5921","Equipment - Purchase","06/08/2018"
"Wolverhampton City Council","http://opendatacommunities.org/id/metropolitan-district-council/wolverhampton","MAJESTIC WINE","250.00","Civic Centre Catering","5921","Equipment - Purchase","06/08/2018"
"Wolverhampton City Council","http://opendatacommunities.org/id/metropolitan-district-council/wolverhampton","MAJESTIC WINE","250.00","Civic Centre Catering","5921","Equipment - Purchase","06/08/2018"
"Wolverhampton City Council","http://opendatacommunities.org/id/metropolitan-district-council/wolverhampton","MAJESTIC WINE","250.00","Civic Centre Catering","5921","Equipment - Purchase","06/08/2018"
"Wolverhampton City Council","http://opendatacommunities.org/id/metropolitan-district-council/wolverhampton","MAJESTIC WINE","250.00","Civic Centre Catering","5921","Equipment - Purchase","06/08/2018"
"Wolverhampton City Council","http://opendatacommunities.org/id/metropolitan-district-council/wolverhampton","MAJESTIC WINE","250.00","Civic Centre Catering","5921","Equipment - Purchase","06/08/2018"
"Wolverhampton City Council","http://opendatacommunities.org/id/metropolitan-district-council/wolverhampton","HMCOURTS-SERVICE.G","20.00","LAC Transitions Team","9222","Fines & Penalties","06/08/2018"
"Wolverhampton City Council","http://opendatacommunities.org/id/metropolitan-district-council/wolverhampton","PREMIER INN","200.00","Business Manager - Place","3811","Services - Supplies & Services to users","06/08/2018"
"Wolverhampton City Council","http://opendatacommunities.org/id/metropolitan-district-council/wolverhampton","AMZN Mktp UK","337.82","Document Centre - General","5942","Equipment - Purchase","06/08/2018"
"Wolverhampton City Council","http://opendatacommunities.org/id/metropolitan-district-council/wolverhampton","AMZN Mktp UK","170.57","Strategic ICTS (ICT Serv Budget)","5942","Equipment - Purchase","06/08/2018"
"Wolverhampton City Council","http://opendatacommunities.org/id/metropolitan-district-council/wolverhampton","ASDA GROCERIES ONLINE","3.28","Upper Pendeford Farm Childrens Home","5411","Provisions (Not for resale)","06/08/2018"
"Wolverhampton City Council","http://opendatacommunities.org/id/metropolitan-district-council/wolverhampton","ASDA GROCERIES ONLINE","240.54","Upper Pendeford Farm Childrens Home","5411","Provisions (Not for resale)","06/08/2018"
"Wolverhampton City Council","http://opendatacommunities.org/id/metropolitan-district-council/wolverhampton","Amazon.co.uk","43.44","Archives","5969","Books","06/08/2018"
"Wolverhampton City Council","http://opendatacommunities.org/id/metropolitan-district-council/wolverhampton","WWW.ARGOS.CO.UK","24.12","Archives","5310","Equipment - Purchase","06/08/2018"
"Wolverhampton City Council","http://opendatacommunities.org/id/metropolitan-district-council/wolverhampton","iZ  D   K TRADING","50.00","Wolverhampton Indoor and Open Market","5999","Equipment - Purchase","06/08/2018"
"Wolverhampton City Council","http://opendatacommunities.org/id/metropolitan-district-council/wolverhampton","AMZN Mktp UK","72.55","Older People Provider Management","5942","Equipment - Purchase","06/08/2018"
"Wolverhampton City Council","http://opendatacommunities.org/id/metropolitan-district-council/wolverhampton","AMZN Mktp UK","23.98","Civic Centre","5942","Equipment - Purchase","06/08/2018"
"Wolverhampton City Council","http://opendatacommunities.org/id/metropolitan-district-council/wolverhampton","AMZN Mktp UK","47.96","Civic Centre","5942","Equipment - Purchase","06/08/2018"
"Wolverhampton City Council","http://opendatacommunities.org/id/metropolitan-district-council/wolverhampton","Amazon Prime","6.66","Central Baths","5968","Subscriptions","03/08/2018"
"Wolverhampton City Council","http://opendatacommunities.org/id/metropolitan-district-council/wolverhampton","COSTA COFFEE 43043885","40.00","Service Wide","5814","Educ Trips, Holidays, Outings, Activity","03/08/2018"
"Wolverhampton City Council","http://opendatacommunities.org/id/metropolitan-district-council/wolverhampton","WOLVERHAMPTON CC","4.58","Headstart Phase 3","7523","Car Allowances","03/08/2018"
"Wolverhampton City Council","http://opendatacommunities.org/id/metropolitan-district-council/wolverhampton","IKEA LIMITED","137.50","EIP Locality 8","5712","Furniture","03/08/2018"
"Wolverhampton City Council","http://opendatacommunities.org/id/metropolitan-district-council/wolverhampton","WWW.CSGONLINE.CO.UK","163.20","EIP Locality 8","5085","Equipment - Purchase","03/08/2018"
"Wolverhampton City Council","http://opendatacommunities.org/id/metropolitan-district-council/wolverhampton","PAYPAL  CHILDFAMILY","27.50","EIP Locality 2","8299","Training Expenses","03/08/2018"
"Wolverhampton City Council","http://opendatacommunities.org/id/metropolitan-district-council/wolverhampton","000002200500000","250.00","Childrens with Disabilities Team","6011","Financial Assistance In Exceptional Circ","03/08/2018"
"Wolverhampton City Council","http://opendatacommunities.org/id/metropolitan-district-council/wolverhampton","AMZN Mktp UK","52.10","Service Wide","5942","Books","03/08/2018"
"Wolverhampton City Council","http://opendatacommunities.org/id/metropolitan-district-council/wolverhampton","AMZN Mktp UK","119.00","Service Wide","5942","Books","03/08/2018"
"Wolverhampton City Council","http://opendatacommunities.org/id/metropolitan-district-council/wolverhampton","AMZN Mktp UK","96.59","Service Wide","5942","Books","03/08/2018"
"Wolverhampton City Council","http://opendatacommunities.org/id/metropolitan-district-council/wolverhampton","AMZN Mktp UK","80.45","Service Wide","5942","Books","03/08/2018"
"Wolverhampton City Council","http://opendatacommunities.org/id/metropolitan-district-council/wolverhampton","AMZN Mktp UK","200.42","Service Wide","5942","Books","03/08/2018"
"Wolverhampton City Council","http://opendatacommunities.org/id/metropolitan-district-council/wolverhampton","SCREWFIX DIRECT","216.16","Service Wide","5211","Equipment - Purchase","03/08/2018"
"Wolverhampton City Council","http://opendatacommunities.org/id/metropolitan-district-council/wolverhampton","WILKO.COM","40.50","Creative Studies Delivery Area","5399","Equipment - Purchase","03/08/2018"
"Wolverhampton City Council","http://opendatacommunities.org/id/metropolitan-district-council/wolverhampton","CITY DIRECT","40.00","CIN/CP Social Work Unit - Area 7","8299","Section 17","03/08/2018"
"Wolverhampton City Council","http://opendatacommunities.org/id/metropolitan-district-council/wolverhampton","GRO HM PASSPORT OFFICE","29.85","CIN/CP Social Work Unit - Area 7","9399","Section 17","03/08/2018"
"Wolverhampton City Council","http://opendatacommunities.org/id/metropolitan-district-council/wolverhampton","CARVER/WOLVERHAMPTON/L","22.80","Cleaning of Buildings - General","5211","Materials","03/08/2018"
"Wolverhampton City Council","http://opendatacommunities.org/id/metropolitan-district-council/wolverhampton","PREMIER INN","97.00","Fostering Team & Allowances","3811","Accommodation Costs","03/08/2018"
"Wolverhampton City Council","http://opendatacommunities.org/id/metropolitan-district-council/wolverhampton","ATZ&H INN","280.00","CIN/CP Social Work Unit - Area 6","7011","Section 17","03/08/2018"
"Wolverhampton City Council","http://opendatacommunities.org/id/metropolitan-district-council/wolverhampton","AMZN Mktp UK","12.66","Communications & Marketing - General","5942","Books","03/08/2018"
"Wolverhampton City Council","http://opendatacommunities.org/id/metropolitan-district-council/wolverhampton","FACEBK WWJN5FJV92","10.53","Headstart Phase 3","7311","Marketing \ Non-staff advertising","03/08/2018"
"Wolverhampton City Council","http://opendatacommunities.org/id/metropolitan-district-council/wolverhampton","FACEBK UWJN5FJV92","9.47","Headstart Phase 3","7311","Marketing \ Non-staff advertising","03/08/2018"
"Wolverhampton City Council","http://opendatacommunities.org/id/metropolitan-district-council/wolverhampton","Trainline","26.85","Admin & Support","4112","Public Transport","03/08/2018"
"Wolverhampton City Council","http://opendatacommunities.org/id/metropolitan-district-council/wolverhampton","WWW.WMCA.CO.UK","220.00","Admin & Support","9399","Services - Fees and Charges","03/08/2018"
"Wolverhampton City Council","http://opendatacommunities.org/id/metropolitan-district-council/wolverhampton","PMC ELECTRICS LIMI","29.95","City Direct","4812","Comms - Mobile Telephones","03/08/2018"
"Wolverhampton City Council","http://opendatacommunities.org/id/metropolitan-district-council/wolverhampton","Trainline","-4.80","LAC Education Team (LACE)","4112","Public Transport","03/08/2018"
"Wolverhampton City Council","http://opendatacommunities.org/id/metropolitan-district-council/wolverhampton","Trainline","16.35","LAC Education Team (LACE)","4112","Public Transport","03/08/2018"
"Wolverhampton City Council","http://opendatacommunities.org/id/metropolitan-district-council/wolverhampton","JOHNSONS","9.17","Cemeteries","7210","Equipment - R & M","03/08/2018"
"Wolverhampton City Council","http://opendatacommunities.org/id/metropolitan-district-council/wolverhampton","AMZN Mktp UK","10.99","Strategic ICTS (ICT Serv Budget)","5942","Books","03/08/2018"
"Wolverhampton City Council","http://opendatacommunities.org/id/metropolitan-district-council/wolverhampton","AMZN Mktp UK","10.99","Strategic ICTS (ICT Serv Budget)","5942","Books","03/08/2018"
"Wolverhampton City Council","http://opendatacommunities.org/id/metropolitan-district-council/wolverhampton","Amazon Prime","0.82","Strategic ICTS (ICT Serv Budget)","5968","Subscriptions","03/08/2018"
"Wolverhampton City Council","http://opendatacommunities.org/id/metropolitan-district-council/wolverhampton","AMZN Mktp UK","6.66","Strategic ICTS (ICT Serv Budget)","5942","Books","03/08/2018"
"Wolverhampton City Council","http://opendatacommunities.org/id/metropolitan-district-council/wolverhampton","AMZN Mktp UK","19.99","Strategic ICTS (ICT Serv Budget)","5942","Books","03/08/2018"
"Wolverhampton City Council","http://opendatacommunities.org/id/metropolitan-district-council/wolverhampton","AMZN Mktp UK","13.31","Strategic ICTS (ICT Serv Budget)","5942","Books","03/08/2018"
"Wolverhampton City Council","http://opendatacommunities.org/id/metropolitan-district-council/wolverhampton","Trainline","52.40","LAC Transitions Team","4112","Public Transport","03/08/2018"
"Wolverhampton City Council","http://opendatacommunities.org/id/metropolitan-district-council/wolverhampton","SCREWFIX DIRECT","79.15","Shopmobility","5211","Equipment - Purchase","03/08/2018"
"Wolverhampton City Council","http://opendatacommunities.org/id/metropolitan-district-council/wolverhampton","WWW.TOBYGIFTS.CO.UK","80.00","CIN/CP Social Work Unit - Area 4","5999","Section 17","03/08/2018"
"Wolverhampton City Council","http://opendatacommunities.org/id/metropolitan-district-council/wolverhampton","Trainline","50.70","CIN/CP Social Work Unit - Area 4","4112","Section 17","03/08/2018"
"Wolverhampton City Council","http://opendatacommunities.org/id/metropolitan-district-council/wolverhampton","THE BIKEABILITY TRUST","1136.63","Cycling Schemes - Bikeability","5111","Equipment - Purchase","03/08/2018"
"Wolverhampton City Council","http://opendatacommunities.org/id/metropolitan-district-council/wolverhampton","GRO HM PASSPORT OFFICE","-23.40","Head of Service - CINCP","9399","Services - Professional Fees","03/08/2018"
"Wolverhampton City Council","http://opendatacommunities.org/id/metropolitan-district-council/wolverhampton","THE COAL AUTHORITY","95.16","Disposal Costs","9399","Services - Professional Fees","03/08/2018"
"Wolverhampton City Council","http://opendatacommunities.org/id/metropolitan-district-council/wolverhampton","GRO HM PASSPORT OFFICE","23.40","Head of Service - CINCP","9399","Services - Professional Fees","03/08/2018"
"Wolverhampton City Council","http://opendatacommunities.org/id/metropolitan-district-council/wolverhampton","Trainline","8.55","CIN/CP Social Work Unit - Area 8","4112","Section 17","03/08/2018"
"Wolverhampton City Council","http://opendatacommunities.org/id/metropolitan-district-council/wolverhampton","CUMMINGS BROTHERS LOCK","6.67","Northicote Farm","7399","Equipment - Purchase","03/08/2018"
"Wolverhampton City Council","http://opendatacommunities.org/id/metropolitan-district-council/wolverhampton","Amazon.co.uk","41.67","Northicote Farm","5969","Clothing / Uniforms","03/08/2018"
"Wolverhampton City Council","http://opendatacommunities.org/id/metropolitan-district-council/wolverhampton","WWW.ARGOS.CO.UK","51.41","EIP Locality 1","5310","Grant Payments","03/08/2018"
"Wolverhampton City Council","http://opendatacommunities.org/id/metropolitan-district-council/wolverhampton","WWW.ARGOS.CO.UK","31.43","EIP Locality 1","5310","Grant Payments","03/08/2018"
"Wolverhampton City Council","http://opendatacommunities.org/id/metropolitan-district-council/wolverhampton","WWW.ARGOS.CO.UK","137.45","Older People Provider Management","5310","Equipment - Purchase","03/08/2018"
"Wolverhampton City Council","http://opendatacommunities.org/id/metropolitan-district-council/wolverhampton","AMZN Mktp UK","99.97","Older People Provider Management","5942","Equipment - Purchase","03/08/2018"
"Wolverhampton City Council","http://opendatacommunities.org/id/metropolitan-district-council/wolverhampton","ARGOS RETAIL GROUP","19.99","Duke Street Bungalows","5310","Equipment - Purchase","03/08/2018"
"Wolverhampton City Council","http://opendatacommunities.org/id/metropolitan-district-council/wolverhampton","CURRYS S/S","10.82","Blakenhall Commty & Healthy Living Ctr","5732","Equipment - Purchase","03/08/2018"
"Wolverhampton City Council","http://opendatacommunities.org/id/metropolitan-district-council/wolverhampton","WWW.ARGOS.CO.UK","101.95","LAC Team","5310","Financial Assistance In Exceptional Circ","03/08/2018"
"Wolverhampton City Council","http://opendatacommunities.org/id/metropolitan-district-council/wolverhampton","Central Taxis Limited","6.30","LAC Team","4121","Client Transport","03/08/2018"
"Wolverhampton City Council","http://opendatacommunities.org/id/metropolitan-district-council/wolverhampton","Central Taxis Limited","6.30","LAC Team","4121","Public Transport","03/08/2018"
"Wolverhampton City Council","http://opendatacommunities.org/id/metropolitan-district-council/wolverhampton","Central Taxis Limited","11.40","LAC Team","4121","Client Transport","03/08/2018"
"Wolverhampton City Council","http://opendatacommunities.org/id/metropolitan-district-council/wolverhampton","AMZN Mktp UK","45.95","HARP","5942","Materials","03/08/2018"
"Wolverhampton City Council","http://opendatacommunities.org/id/metropolitan-district-council/wolverhampton","AMZN Mktp UK","51.67","Parking Enforcement","5942","Equipment - Purchase","03/08/2018"
"Wolverhampton City Council","http://opendatacommunities.org/id/metropolitan-district-council/wolverhampton","POST OFFICE COUNTER","3.03","Radical Landscapes","9402","Comms - Postage","02/08/2018"
"Wolverhampton City Council","http://opendatacommunities.org/id/metropolitan-district-council/wolverhampton","LOYD 37 CHURCH STREET","170.00","EIP Locality 8","6011","Financial Assistance In Exceptional Circ","02/08/2018"
"Wolverhampton City Council","http://opendatacommunities.org/id/metropolitan-district-council/wolverhampton","WM MORRISON 024","26.19","EIP Locality 2","5411","Financial Assistance In Exceptional Circ","02/08/2018"
"Wolverhampton City Council","http://opendatacommunities.org/id/metropolitan-district-council/wolverhampton","ARGOS LTD","17.49","LAC Transitions Team","5310","Client Allowances","02/08/2018"
"Wolverhampton City Council","http://opendatacommunities.org/id/metropolitan-district-council/wolverhampton","ROYAL BK OF SCOTLAND","250.00","CIN/CP Social Work Unit - Area 6","6011","Financial Assistance In Exceptional Circ","02/08/2018"
"Wolverhampton City Council","http://opendatacommunities.org/id/metropolitan-district-council/wolverhampton","GOOGLE  GSUITE_wolves-","9.90","Civic Halls Non Direct Management A/C","5968","Subscriptions","02/08/2018"
"Wolverhampton City Council","http://opendatacommunities.org/id/metropolitan-district-council/wolverhampton","CAFFE NERO","5.10","Economic Development","5812","Educ Trips, Holidays, Outings, Activity","02/08/2018"
"Wolverhampton City Council","http://opendatacommunities.org/id/metropolitan-district-council/wolverhampton","TVLICENSING.CO.UK","150.50","Bert Williams Leisure Centre","7392","Services - Consultants","02/08/2018"
"Wolverhampton City Council","http://opendatacommunities.org/id/metropolitan-district-council/wolverhampton","W M MORRISON PLC","0.50","Ernest Bold Court","5411","Provisions (Not for resale)","02/08/2018"
"Wolverhampton City Council","http://opendatacommunities.org/id/metropolitan-district-council/wolverhampton","AMZN Mktp UK","61.23","Strategic ICTS (ICT Serv Budget)","5942","Books","02/08/2018"
"Wolverhampton City Council","http://opendatacommunities.org/id/metropolitan-district-council/wolverhampton","AMZN Mktp UK","1.46","Strategic ICTS (ICT Serv Budget)","5942","Books","02/08/2018"
"Wolverhampton City Council","http://opendatacommunities.org/id/metropolitan-district-council/wolverhampton","WP-QMS LTD","25.99","Wholly Owned Company - Operations","8931","Services - Professional Fees","02/08/2018"
"Wolverhampton City Council","http://opendatacommunities.org/id/metropolitan-district-council/wolverhampton","STAFFORDSHIRE COUNTY C","90.00","Upper Pendeford Farm Childrens Home","9399","Services - Fees and Charges","02/08/2018"
"Wolverhampton City Council","http://opendatacommunities.org/id/metropolitan-district-council/wolverhampton","COSTA COFFEE 43043885","10.00","Service Wide","5814","Educ Trips, Holidays, Outings, Activity","02/08/2018"
"Wolverhampton City Council","http://opendatacommunities.org/id/metropolitan-district-council/wolverhampton","ROYAL CARPETS","241.67","LAC Transitions Team","5713","Client Allowances","02/08/2018"
"Wolverhampton City Council","http://opendatacommunities.org/id/metropolitan-district-council/wolverhampton","Amazon Prime","6.66","Vulnerable Young Persons Team","5968","Subscriptions","02/08/2018"
"Wolverhampton City Council","http://opendatacommunities.org/id/metropolitan-district-council/wolverhampton","WIX.COM","93.13","Technical Support","5968","Subscriptions","02/08/2018"
"Wolverhampton City Council","http://opendatacommunities.org/id/metropolitan-district-council/wolverhampton","WP-CENTRAL TAXIS L","6.50","LAC Team","4121","Public Transport","02/08/2018"
"Wolverhampton City Council","http://opendatacommunities.org/id/metropolitan-district-council/wolverhampton","CARVER/WOLVERHAMPTON/L","182.83","Northicote Farm","5211","Materials","02/08/2018"
"Wolverhampton City Council","http://opendatacommunities.org/id/metropolitan-district-council/wolverhampton","AMZN Mktp UK","4.16","Northicote Farm","5942","First Aid Requisites","02/08/2018"
"Wolverhampton City Council","http://opendatacommunities.org/id/metropolitan-district-council/wolverhampton","AMZN Mktp UK","59.98","Communications & Marketing - General","5942","Books","01/08/2018"
"Wolverhampton City Council","http://opendatacommunities.org/id/metropolitan-district-council/wolverhampton","OXYGEN FREEJUMPING","247.50","EIP Locality 1","7997","Grant Payments","01/08/2018"
"Wolverhampton City Council","http://opendatacommunities.org/id/metropolitan-district-council/wolverhampton","HOME BARGAINS WOLVERHA","24.94","Duke Street Bungalows","5251","Equipment - Purchase","01/08/2018"
"Wolverhampton City Council","http://opendatacommunities.org/id/metropolitan-district-council/wolverhampton","DRONE DOCTOR DDA 15559","223.08","Technical Support","5734","Equipment - Purchase","01/08/2018"
"Wolverhampton City Council","http://opendatacommunities.org/id/metropolitan-district-council/wolverhampton","SPECIALIST CRAFTS LTD","169.47","Education And Access","5970","Materials","01/08/2018"
"Wolverhampton City Council","http://opendatacommunities.org/id/metropolitan-district-council/wolverhampton","BAKER ROSS LTD","189.12","Education And Access","5970","Materials","01/08/2018"
"Wolverhampton City Council","http://opendatacommunities.org/id/metropolitan-district-council/wolverhampton","Virgin Trains","140.30","LAC Team","4112","Public Transport","01/08/2018"
"Wolverhampton City Council","http://opendatacommunities.org/id/metropolitan-district-council/wolverhampton","FACEBK X8URDFSA82","40.91","WV Active Marketing","7311","Marketing \ Non-staff advertising","01/08/2018"
"Wolverhampton City Council","http://opendatacommunities.org/id/metropolitan-district-council/wolverhampton","FACEBK W8URDFSA82","301.06","WV Active Marketing","7311","Marketing \ Non-staff advertising","01/08/2018"
"Wolverhampton City Council","http://opendatacommunities.org/id/metropolitan-district-council/wolverhampton","Trainline","167.80","IMPACT","4112","Public Transport","01/08/2018"
"Wolverhampton City Council","http://opendatacommunities.org/id/metropolitan-district-council/wolverhampton","Hotel on Booking.com","62.50","IMPACT","7011","Accommodation Costs","01/08/2018"
"Wolverhampton City Council","http://opendatacommunities.org/id/metropolitan-district-council/wolverhampton","FACEBK QP8EMFJC22","4.98","Admin & Support","7311","Marketing \ Non-staff advertising","01/08/2018"
"Wolverhampton City Council","http://opendatacommunities.org/id/metropolitan-district-council/wolverhampton","FACEBK PP8EMFJC22","120.62","Admin & Support","7311","Marketing \ Non-staff advertising","01/08/2018"
"Wolverhampton City Council","http://opendatacommunities.org/id/metropolitan-district-council/wolverhampton","Trainline","93.00","LAC Education Team (LACE)","4112","Public Transport","01/08/2018"
"Wolverhampton City Council","http://opendatacommunities.org/id/metropolitan-district-council/wolverhampton","EBUYER (UK) LTD","804.82","Strategic ICTS (ICT Serv Budget)","5722","Equipment - Purchase","01/08/2018"
"Wolverhampton City Council","http://opendatacommunities.org/id/metropolitan-district-council/wolverhampton","MAYFAIR CARPETS","138.00","EIP Locality 5","5713","Grant Payments","01/08/2018"
"Wolverhampton City Council","http://opendatacommunities.org/id/metropolitan-district-council/wolverhampton","Amazon.co.uk","179.31","Strategic ICTS (ICT Serv Budget)","5969","Equipment - Purchase","01/08/2018"
"Wolverhampton City Council","http://opendatacommunities.org/id/metropolitan-district-council/wolverhampton","Amazon.co.uk","199.30","Strategic ICTS (ICT Serv Budget)","5969","Equipment - Purchase","01/08/2018"
"Wolverhampton City Council","http://opendatacommunities.org/id/metropolitan-district-council/wolverhampton","TIMPSON LTD","17.00","Wolverhampton Indoor and Open Market","7251","Fixtures and Fittings - R&M","01/08/2018"
"Wolverhampton City Council","http://opendatacommunities.org/id/metropolitan-district-council/wolverhampton","WP-CENTRAL TAXIS L","13.10","LAC Team","4121","Client Transport","01/08/2018"
"Wolverhampton City Council","http://opendatacommunities.org/id/metropolitan-district-council/wolverhampton","Central Taxis Limited","25.00","CIN/CP Social Work Unit - Area 5","4121","Section 17","01/08/2018"
"Wolverhampton City Council","http://opendatacommunities.org/id/metropolitan-district-council/wolverhampton","AMZN Mktp UK","29.08","Blakenhall Resource Centre","5942","Equipment - Purchase","01/08/2018"
"Wolverhampton City Council","http://opendatacommunities.org/id/metropolitan-district-council/wolverhampton","AMZN MKTP UK AMAZON.CO","23.58","Community Enablement","5942","Stationery","01/08/2018"
"Wolverhampton City Council","http://opendatacommunities.org/id/metropolitan-district-council/wolverhampton","AMZN Mktp UK","33.17","Community Enablement","5942","Stationery","01/08/2018"
"Wolverhampton City Council","http://opendatacommunities.org/id/metropolitan-district-council/wolverhampton","Virgin Trains","140.30","Adoption and Residence Team & Allowances","4112","Public Transport","01/08/2018"
"Wolverhampton City Council","http://opendatacommunities.org/id/metropolitan-district-council/wolverhampton","REDWINGS LODGE","5.95","Adult Services - West","7011","Services - Supplies & Services to users","01/08/2018"
"Wolverhampton City Council","http://opendatacommunities.org/id/metropolitan-district-council/wolverhampton","JORVIK SHOP","367.04","Radical Landscapes","7991","Comms - Postage","01/08/2018"
"Wolverhampton City Council","http://opendatacommunities.org/id/metropolitan-district-council/wolverhampton","THE LEE SHAW PARTNERSH","120.00","LAC Transitions Team","7399","Client Allowances","01/08/2018"
"Wolverhampton City Council","http://opendatacommunities.org/id/metropolitan-district-council/wolverhampton","FACEBK WJ3EJFAH52","14.33","Civic Halls Non Direct Management A/C","7311","Marketing \ Non-staff advertising","01/08/2018"
"Wolverhampton City Council","http://opendatacommunities.org/id/metropolitan-district-council/wolverhampton","FACEBK DJ3EJFAH52","5.25","Civic Halls Non Direct Management A/C","7311","Marketing \ Non-staff advertising","01/08/2018"
"Wolverhampton City Council","http://opendatacommunities.org/id/metropolitan-district-council/wolverhampton","TESCO STORES 5194","60.79","Towers Outdoor Education Centre","5411","Provisions (Not for resale)","01/08/2018"
"Wolverhampton City Council","http://opendatacommunities.org/id/metropolitan-district-council/wolverhampton","CARVER/WOLVERHAMPTON/L","152.45","Ground Maintenance East","5211","Materials","01/08/2018"
"Wolverhampton City Council","http://opendatacommunities.org/id/metropolitan-district-council/wolverhampton","FACEBK HT3Y9HSAR2","19.15","Communications & Marketing - General","7311","Marketing \ Non-staff advertising","01/08/2018"
"Wolverhampton City Council","http://opendatacommunities.org/id/metropolitan-district-council/wolverhampton","FACEBK GT3Y9HSAR2","291.25","Communications & Marketing - General","7311","Marketing \ Non-staff advertising","01/08/2018"
